Workbook

Sheet Portal
B5: Det er kompliceret at lave gødningsplan for de økologiske marker. Det skyldes, at de tilladte gødninger er sammensatte, at afgrødernes behov for N, P, K og S er forskellig, at markernes jordbundstal varierer, at priserne på gødningerne er forskellige, og transport, opbevaring og udbringning er forskellig. Det hele har betydning for dit valg. Anvend dette program både som opslagsværk hvor du finder detailierede oplysninger om de gødninger, der er tilladt i den økologiske markdrift, og som et værktøj, der hjælper dig med at foretage det mest optimale valg blandt de gødninger der kan være aktuelle for dig. Brug de grønne trykknapper for at komme rundt i mulighederne:
G17: Version 2.0
G18: Januar 2017

Sheet Forside
B6: Værktøj til valg af gødning
B8: Her kan du sammenligne den relle værdi af gødningsprodukter der er tilladt til økologisk brug. I beregningerne indgår værdien af næringsstofferne som du vurderer den og omkostninger til indkøb, transport, lagring og udbringning.
B13: Beregningen er foretaget for: | H13: Beregningen af foretaget af:
B15: Gårdnavn | H15: Forening
B16: Landmand | H16: Konsulent | P16: Landmand | R16: Konsulent
B17: Adresse | H17: Adresse | P17: Tom? | Q17: Postnr | R17: Tom? | S17: Postnr
B18: Postnummer | E18: =IF(P18=FALSE,VLOOKUP(Q18,Postnr,2,FALSE),"") ->  | H18: Postnummer | K18: =IF(R18=FALSE,VLOOKUP(S18,Postnr,2,FALSE),"") ->  | P18: =ISBLANK(D18) -> TRUE | Q18: =VALUE(LEFT(D18,4)) ->  | R18: =ISBLANK(J18) -> TRUE | S18: =VALUE(LEFT(J18,4)) -> 
B19: E-mail | H19: E-mail
B22: Scenarienavn:
B25: Fremgangsmåde:

Sheet Betalingsvillighed
B2: Næringsstofpriser og næringsstofprioritering
B4: Anfør de næringsstoffer, som du har behov for i en given mark eller afgrøde - og som du derfor er villig til at betale for. Som udgangspunkt (standard) er der anført næringsstofpriser i konventionel handelsgødning.
G12: Næringsstof
C13: Næringsstof | D13: Vælg | E13: Pris | F13: Vælg | G13: prioriteret,
G14: Kg pr. ha | Q14: Indregnet pris | T14: Max. Mængde
C15: Kvælstof, udnyttet | E15: =Forudsætninger!$C6 -> 8 | G15: 50 | N15: =Forudsætninger!$C6 -> 8 | O15: 50 | P15: FALSE | Q15: =IF(P15=TRUE,E15,0) -> 0 | S15: TRUE | T15: =IF(S15=TRUE,G15,0) -> 50 | U15: =IF(S15,"Kvælstof","") -> Kvælstof
C16: Fosfor | E16: =Forudsætninger!$C7 -> 10 | G16: 20 | N16: =Forudsætninger!$C7 -> 10 | O16: 20 | P16: FALSE | Q16: =IF(P16=TRUE,E16,0) -> 0 | S16: FALSE | T16: =IF(S16=TRUE,G16,0) -> 0 | U16: =IF(S16,"Fosfor","") -> 
C17: Kalium | E17: =Forudsætninger!$C8 -> 6 | G17: 50 | N17: =Forudsætninger!$C8 -> 6 | O17: 50 | P17: FALSE | Q17: 0 | S17: FALSE | T17: =IF(S17=TRUE,G17,0) -> 0 | U17: =IF(S17,"Kalium","") -> 
C18: Svovl | E18: =Forudsætninger!$C9 -> 2 | G18: 15 | N18: =Forudsætninger!$C9 -> 2 | O18: 15 | P18: FALSE | Q18: 0 | S18: FALSE | T18: =IF(S18=TRUE,G18,0) -> 0 | U18: =IF(S18,"Svovl","") -> 
C19: Magnesium | E19: =Forudsætninger!$C10 -> 4 | G19: - | N19: =Forudsætninger!$C10 -> 4 | P19: FALSE | Q19: 0
S20: =IF(S15=TRUE,CONCATENATE(T15," kg udn. N/ha"),IF(S16=TRUE,CONCATENATE(T16," kg P/ha"),IF(S17=TRUE,CONCATENATE(T17," kg K/ha")))) -> 50 kg udn. N/ha | U20: =CONCATENATE(U15,U16,U17) -> Kvælstof
G21: Videre til

Sheet Gødningsprodukter
B2: Sammenligning af gødninger
B4: Vælg de gødningstyper, du ønsker at sammenligne og tilret med egne værdier.
D8: Standard næringsstofindhold, kg pr. ton (før fortyndingingsfaktor) | J8: For-tyn-dings-faktor | N8: Transport | R8: Lagring | T8: Udbringning | V8: Omkost. | W8: Værdi ÷ | X8: Ved: | Z8: Medfølgende næringsstoffer, | AU8: For-tyn-dings-faktor
B9: Gødningsprodukt | K9: N-udn. | L9: Værdi, | M9: Indkøb, | N9: Betal- | O9: Transport- | P9: Afstand, | Q9: Omkost. | R9: Betal- | T9: Nedfæld- | U9: Omkost. | V9: i alt | W9: omkost. | X9: =Betalingsvillighed!S20 -> 50 kg udn. N/ha | Z9: kg pr. ha | AE9: Transport- | AF9: Tilstand | AH9: Betaling for: | AJ9: Nedfæld.- | AK9: Tillæg for | AO9: Næringsstofindhold, kg pr. ton | AV9: N-udn. | AW9: Værdi, | AX9: Indkøb,
C10: Nr. | D10: Tot-N | E10: NH4-N | F10: P | G10: K | H10: S | I10: Mg | K10: pct. | L10: kr./ton | M10: kr./ton | N10: ing | O10: form | P10: km | Q10: kr./ton | R10: ing | S10: kr./ton | T10: ning | U10: kr./ton | V10: kr./ton | W10: kr./ton | X10: Ton/ha | Y10: Kr./ha | Z10: Udn. N | AA10: P | AB10: K | AC10: S | AD10: Mg | AE10: form | AH10: Transport | AI10: Lagring | AJ10: ning | AK10: nedfældning | AO10: Tot-N | AP10: NH4-N | AQ10: P | AR10: K | AS10: S | AT10: Mg | AV10: pct. | AW10: kr./ton | AX10: kr./ton
C11: 1 | D11: =IF($C11>1,INDEX(Produkttabel,C11,4),"") ->  | E11: =IF($C11>1,INDEX(Produkttabel,C11,5),"") ->  | F11: =IF($C11>1,INDEX(Produkttabel,C11,6),"") ->  | G11: =IF($C11>1,INDEX(Produkttabel,C11,7),"") ->  | H11: =IF($C11>1,INDEX(Produkttabel,C11,8),"") ->  | I11: =IF($C11>1,INDEX(Produkttabel,$C11,9),"") ->  | J11: =IF(C11>1,1,"") ->  | K11: =IF($C11>1,INDEX(Produkttabel,$C11,11),"") ->  | L11: =IF(C11>1,(D11*K11%*Npris+F11*Ppris*Pudnyttelse%+G11*Kpris*Kudnyttelse%+H11*Spris*Sudnyttelse%+I11*Mgpris*MgUdnyttelse%)/J11,"") ->  | M11: =IF($C11>1,INDEX(Produkttabel,$C11,13),"") ->  | P11: 25 | Q11: =IF(C11>1,IF(AND(AH11=TRUE,AE11<>""),(((VLOOKUP(AG11,Transportomkostninger,4)/60+((P11*2)/VLOOKUP(AG11,Transportomkostninger,5)))*VLOOKUP(AG11,Transportomkostninger,2)+VLOOKUP(AG11,Transportomkostninger,3))/VLOOKUP(AG11,Transportomkostninger,6)),0),"") ->  | S11: =IF(C11>1,IF(AI11=TRUE,IF($C11>1,INDEX(Produkttabel,C11,14),""),0),"") ->  | U11: =IF($C11>1,((INDEX(Produkttabel,$C11,15)+AK11)),"") ->  | V11: =IF(C11>1,M11+Q11+S11+U11,"") ->  | W11: =IF(C11>1,L11-V11,"") ->  | X11: =IF(C11>1,(IF(Betalingsvillighed!$S$15=TRUE,Betalingsvillighed!$T$15/(D11*K11%/J11),IF(Betalingsvillighed!$S$16=TRUE,Betalingsvillighed!$T$16/(F11/J11),IF(Betalingsvillighed!$S$17=TRUE,Betalingsvillighed!$T$17/(G11/J11),IF(Betalingsvillighed!$S$18=TRUE,Betalingsvillighed!$T$18/(H11/J11)))))),"") ->  | Y11: =IF(C11>1,X11*W11,"") ->  | Z11: =IF(C11>1,X11*K11%*D11,"") ->  | AA11: =IF(C11>1,X11*F11,"") ->  | AB11: =IF(C11>1,X11*G11,"") ->  | AC11: =IF(C11>1,X11*H11,"") ->  | AD11: =IF(C11>1,X11*I11,"") ->  | AE11: Lastbil | AF11: =IF($C11>1,INDEX(Produkttabel,$C11,12),"") ->  | AG11: =CONCATENATE(AE11,AF11) -> Lastbil | AH11: FALSE | AI11: FALSE | AJ11: FALSE | AK11: =IF(AJ11=TRUE,TillægForNedfældning,0) -> 0 | AO11: =IF($C11>1,INDEX(Produkttabel,AN11,4),"") ->  | AP11: =IF($C11>1,INDEX(Produkttabel,AN11,5),"") ->  | AQ11: =IF($C11>1,INDEX(Produkttabel,AN11,6),"") ->  | AR11: =IF($C11>1,INDEX(Produkttabel,AN11,7),"") ->  | AS11: =IF($C11>1,INDEX(Produkttabel,AN11,8),"") ->  | AT11: =IF($C11>1,INDEX(Produkttabel,$C11,9),"") ->  | AU11: =IF(AN11>1,1,"") ->  | AV11: =IF($C11>1,INDEX(Produkttabel,$C11,11),"") ->  | AW11: =IF(AN11>1,AO11*AV11%*Npris+AQ11*Ppris+AR11*Kpris+AS11*Spris+AT11*Mgpris,"") ->  | AX11: =IF($C11>1,INDEX(Produkttabel,$C11,13),"") -> 
C12: 1 | J12: =IF(C12>1,1,"") ->  | P12: 5 | X12: =IF(C12>1,(IF(Betalingsvillighed!$S$15=TRUE,Betalingsvillighed!$T$15/(D12*K12%/J12),IF(Betalingsvillighed!$S$16=TRUE,Betalingsvillighed!$T$16/(F12/J12),IF(Betalingsvillighed!$S$17=TRUE,Betalingsvillighed!$T$17/(G12/J12),IF(Betalingsvillighed!$S$18=TRUE,Betalingsvillighed!$T$18/(H12/J12)))))),"") ->  | AE12: Traktor | AG12: =CONCATENATE(AE12,AF12) -> Traktor | AH12: FALSE | AI12: FALSE | AJ12: FALSE | AK12: 0 | AU12: =IF(AN12>1,1,"") -> 
C13: 1 | X13: =IF(C13>1,(IF(Betalingsvillighed!$S$15=TRUE,Betalingsvillighed!$T$15/(D13*K13%/J13),IF(Betalingsvillighed!$S$16=TRUE,Betalingsvillighed!$T$16/(F13/J13),IF(Betalingsvillighed!$S$17=TRUE,Betalingsvillighed!$T$17/(G13/J13),IF(Betalingsvillighed!$S$18=TRUE,Betalingsvillighed!$T$18/(H13/J13)))))),"") ->  | AE13: Lastbil | AG13: =CONCATENATE(AE13,AF13) -> Lastbil | AH13: FALSE | AI13: FALSE | AJ13: FALSE | AK13: 0
C14: 1 | X14: =IF(C14>1,(IF(Betalingsvillighed!$S$15=TRUE,Betalingsvillighed!$T$15/(D14*K14%/J14),IF(Betalingsvillighed!$S$16=TRUE,Betalingsvillighed!$T$16/(F14/J14),IF(Betalingsvillighed!$S$17=TRUE,Betalingsvillighed!$T$17/(G14/J14),IF(Betalingsvillighed!$S$18=TRUE,Betalingsvillighed!$T$18/(H14/J14)))))),"") ->  | AE14: Traktor | AG14: =CONCATENATE(AE14,AF14) -> Traktor | AH14: FALSE | AI14: FALSE | AJ14: FALSE | AK14: 0
C15: 1 | X15: =IF(C15>1,(IF(Betalingsvillighed!$S$15=TRUE,Betalingsvillighed!$T$15/(D15*K15%/J15),IF(Betalingsvillighed!$S$16=TRUE,Betalingsvillighed!$T$16/(F15/J15),IF(Betalingsvillighed!$S$17=TRUE,Betalingsvillighed!$T$17/(G15/J15),IF(Betalingsvillighed!$S$18=TRUE,Betalingsvillighed!$T$18/(H15/J15)))))),"") ->  | AG15: =CONCATENATE(AE15,AF15) ->  | AH15: FALSE | AI15: FALSE | AJ15: FALSE | AK15: 0
C16: 1 | X16: =IF(C16>1,(IF(Betalingsvillighed!$S$15=TRUE,Betalingsvillighed!$T$15/(D16*K16%/J16),IF(Betalingsvillighed!$S$16=TRUE,Betalingsvillighed!$T$16/(F16/J16),IF(Betalingsvillighed!$S$17=TRUE,Betalingsvillighed!$T$17/(G16/J16),IF(Betalingsvillighed!$S$18=TRUE,Betalingsvillighed!$T$18/(H16/J16)))))),"") ->  | AH16: FALSE | AI16: FALSE | AJ16: FALSE | AK16: 0
C17: 1 | X17: =IF(C17>1,(IF(Betalingsvillighed!$S$15=TRUE,Betalingsvillighed!$T$15/(D17*K17%/J17),IF(Betalingsvillighed!$S$16=TRUE,Betalingsvillighed!$T$16/(F17/J17),IF(Betalingsvillighed!$S$17=TRUE,Betalingsvillighed!$T$17/(G17/J17),IF(Betalingsvillighed!$S$18=TRUE,Betalingsvillighed!$T$18/(H17/J17)))))),"") ->  | AH17: FALSE | AI17: FALSE | AJ17: FALSE | AK17: 0
C18: 1 | X18: =IF(C18>1,(IF(Betalingsvillighed!$S$15=TRUE,Betalingsvillighed!$T$15/(D18*K18%/J18),IF(Betalingsvillighed!$S$16=TRUE,Betalingsvillighed!$T$16/(F18/J18),IF(Betalingsvillighed!$S$17=TRUE,Betalingsvillighed!$T$17/(G18/J18),IF(Betalingsvillighed!$S$18=TRUE,Betalingsvillighed!$T$18/(H18/J18)))))),"") ->  | AH18: FALSE | AI18: FALSE | AJ18: FALSE | AK18: 0
C19: 1 | X19: =IF(C19>1,(IF(Betalingsvillighed!$S$15=TRUE,Betalingsvillighed!$T$15/(D19*K19%/J19),IF(Betalingsvillighed!$S$16=TRUE,Betalingsvillighed!$T$16/(F19/J19),IF(Betalingsvillighed!$S$17=TRUE,Betalingsvillighed!$T$17/(G19/J19),IF(Betalingsvillighed!$S$18=TRUE,Betalingsvillighed!$T$18/(H19/J19)))))),"") ->  | AG19: =CONCATENATE(AE19,AF19) ->  | AH19: FALSE | AI19: FALSE | AJ19: FALSE | AK19: 0
C20: 1 | X20: =IF(C20>1,(IF(Betalingsvillighed!$S$15=TRUE,Betalingsvillighed!$T$15/(D20*K20%/J20),IF(Betalingsvillighed!$S$16=TRUE,Betalingsvillighed!$T$16/(F20/J20),IF(Betalingsvillighed!$S$17=TRUE,Betalingsvillighed!$T$17/(G20/J20),IF(Betalingsvillighed!$S$18=TRUE,Betalingsvillighed!$T$18/(H20/J20)))))),"") ->  | AH20: FALSE | AI20: FALSE | AJ20: FALSE | AK20: 0
D21: =IF($C21>1,INDEX(Produkttabel,C21,4),"") ->  | F21: =IF($C21>1,INDEX(Produkttabel,D21,5),"") ->  | G21: =IF($C21>1,INDEX(Produkttabel,F21,6),"") ->  | H21: =IF($C21>1,INDEX(Produkttabel,G21,7),"") ->  | I21: =IF($C21>1,INDEX(Produkttabel,H21,8),"") -> 

Sheet Forklaring
C14: Standard næringsstofindhold, kg pr. ton (før fortyndingingsfaktor) | I14: For-tyn-dings-faktor | M14: Transport | Q14: Lagring | S14: Udbringning | U14: Omkost. | V14: Værdi ÷ | W14: Ved: | Y14: Medfølgende næringsstoffer,
B15: Gødningsprodukt | J15: N-udn. | K15: Værdi, | L15: Indkøb, | M15: Betal- | N15: Transport- | O15: Afstand, | P15: Omkost. | Q15: Betal- | S15: Nedfæld- | T15: Omkost. | U15: i alt | V15: omkost. | W15: =Betalingsvillighed!S26 -> 0 | Y15: kg pr. ha
C16: Tot-N | D16: NH4-N | E16: P | F16: K | G16: S | H16: Mg | J16: pct. | K16: kr./ton | L16: kr./ton | M16: ing | N16: form | O16: km | P16: kr./ton | Q16: ing | R16: kr./ton | S16: ning | T16: kr./ton | U16: kr./ton | V16: kr./ton | W16: Ton/ha | X16: Kr./ha | Y16: Udn. N | Z16: P | AA16: K | AB16: S | AC16: Mg

Sheet Udskrift
A1: Beregning af gødningsværdien af økologiske gødningsprodukter
A5: Udarbejdet for | J5: Udarbejdet af
A6: =IF(Forside!D15<>"",Forside!D15,"") ->  | J6: =IF(Forside!J15<>"",Forside!J15,"") -> 
A7: =IF(Forside!D16<>"",Forside!D16,"") ->  | J7: =IF(Forside!J16<>"",Forside!J16,"") -> 
A8: =IF(Forside!D17<>"",Forside!D17,"") ->  | J8: =IF(Forside!J17<>"",Forside!J17,"") -> 
A9: =IF(Forside!D18<>"",CONCATENATE(Forside!D18," ",Forside!E18),"") ->  | J9: =IF(Forside!J18<>"",CONCATENATE(Forside!J18," ",Forside!K18),"") -> 
A10: =IF(Forside!D19<>"",Forside!D19,"") ->  | J10: =IF(Forside!J19<>"",Forside!J19,"") -> 
A12: =IF(Forside!D22<>"","Scenarie:","") ->  | D12: =IF(Forside!D22<>"",Forside!D22,"") -> 
A17: Betalingsvillighed for næringsstoffer | J17: Prioritering af næringsstoffer
E18: Maks. be- | J18: Prioriteret næringsstof: | O18: =Betalingsvillighed!U20 -> Kvælstof
E19: taling, kr./kg | J19: Maksimum dosering: | O19: =Betalingsvillighed!S20 -> 50 kg udn. N/ha
A20: Kvælstof, udnyttet | E20: =IF(Betalingsvillighed!P15=TRUE,Betalingsvillighed!E15,0) -> 0
A21: Fosfor | E21: =IF(Betalingsvillighed!P16=TRUE,Betalingsvillighed!E16,0) -> 0
A22: Kalium | E22: =IF(Betalingsvillighed!P17=TRUE,Betalingsvillighed!E17,0) -> 0
A23: Svovl | E23: =IF(Betalingsvillighed!P18=TRUE,Betalingsvillighed!E18,0) -> 0
A24: Magnesium | E24: =IF(Betalingsvillighed!P19=TRUE,Betalingsvillighed!E19,0) -> 0
A28: Resultater
E29: Omkost | G29: Værdi ÷ | I29: Ved | M29: Medfølgende næringsstoffer,
A30: Gødningsprodukt | E30: I alt | G30: omkost. | I30: =Gødningsprodukter!X9 -> 50 kg udn. N/ha | M30: kg pr. ha
E31: kr./t | G31: kr./ton | I31: Ton/ha | K31: Kr./ha | M31: Nudn. | N31: P | O31: K | P31: S | Q31: Mg
A32: =IF(Gødningsprodukter!C11>1,VLOOKUP(Gødningsprodukter!C11,ProduktNavneTabel,2),"") ->  | E32: =IF(Gødningsprodukter!V11<>0,Gødningsprodukter!V11,"") ->  | G32: =IF(Gødningsprodukter!W11<>0,Gødningsprodukter!W11,"") ->  | I32: =IF(Gødningsprodukter!X11<>0,Gødningsprodukter!X11,"") ->  | K32: =IF(Gødningsprodukter!Y11<>0,Gødningsprodukter!Y11,"") ->  | M32: =IF(Gødningsprodukter!Z11<>0,Gødningsprodukter!Z11,"") ->  | N32: =IF(Gødningsprodukter!AA11<>0,Gødningsprodukter!AA11,"") ->  | O32: =IF(Gødningsprodukter!AB11<>0,Gødningsprodukter!AB11,"") ->  | P32: =IF(Gødningsprodukter!AC11<>0,Gødningsprodukter!AC11,"") ->  | Q32: =IF(Gødningsprodukter!AD11<>0,Gødningsprodukter!AD11,"") -> 
A33: =IF(Gødningsprodukter!C12>1,VLOOKUP(Gødningsprodukter!C12,ProduktNavneTabel,2),"") ->  | E33: =IF(Gødningsprodukter!V12<>0,Gødningsprodukter!V12,"") ->  | G33: =IF(Gødningsprodukter!W12<>0,Gødningsprodukter!W12,"") ->  | I33: =IF(Gødningsprodukter!X12<>0,Gødningsprodukter!X12,"") ->  | K33: =IF(Gødningsprodukter!Y12<>0,Gødningsprodukter!Y12,"") ->  | M33: =IF(Gødningsprodukter!Z12<>0,Gødningsprodukter!Z12,"") ->  | N33: =IF(Gødningsprodukter!AA12<>0,Gødningsprodukter!AA12,"") ->  | O33: =IF(Gødningsprodukter!AB12<>0,Gødningsprodukter!AB12,"") ->  | P33: =IF(Gødningsprodukter!AC12<>0,Gødningsprodukter!AC12,"") ->  | Q33: =IF(Gødningsprodukter!AD12<>0,Gødningsprodukter!AD12,"") -> 
A34: =IF(Gødningsprodukter!C13>1,VLOOKUP(Gødningsprodukter!C13,ProduktNavneTabel,2),"") ->  | E34: =IF(Gødningsprodukter!V13<>0,Gødningsprodukter!V13,"") ->  | G34: =IF(Gødningsprodukter!W13<>0,Gødningsprodukter!W13,"") ->  | I34: =IF(Gødningsprodukter!X13<>0,Gødningsprodukter!X13,"") ->  | K34: =IF(Gødningsprodukter!Y13<>0,Gødningsprodukter!Y13,"") ->  | M34: =IF(Gødningsprodukter!Z13<>0,Gødningsprodukter!Z13,"") ->  | N34: =IF(Gødningsprodukter!AA13<>0,Gødningsprodukter!AA13,"") ->  | O34: =IF(Gødningsprodukter!AB13<>0,Gødningsprodukter!AB13,"") ->  | P34: =IF(Gødningsprodukter!AC13<>0,Gødningsprodukter!AC13,"") ->  | Q34: =IF(Gødningsprodukter!AD13<>0,Gødningsprodukter!AD13,"") -> 
A35: =IF(Gødningsprodukter!C14>1,VLOOKUP(Gødningsprodukter!C14,ProduktNavneTabel,2),"") ->  | E35: =IF(Gødningsprodukter!V14<>0,Gødningsprodukter!V14,"") ->  | G35: =IF(Gødningsprodukter!W14<>0,Gødningsprodukter!W14,"") ->  | I35: =IF(Gødningsprodukter!X14<>0,Gødningsprodukter!X14,"") ->  | K35: =IF(Gødningsprodukter!Y14<>0,Gødningsprodukter!Y14,"") ->  | M35: =IF(Gødningsprodukter!Z14<>0,Gødningsprodukter!Z14,"") ->  | N35: =IF(Gødningsprodukter!AA14<>0,Gødningsprodukter!AA14,"") ->  | O35: =IF(Gødningsprodukter!AB14<>0,Gødningsprodukter!AB14,"") ->  | P35: =IF(Gødningsprodukter!AC14<>0,Gødningsprodukter!AC14,"") ->  | Q35: =IF(Gødningsprodukter!AD14<>0,Gødningsprodukter!AD14,"") -> 
A36: =IF(Gødningsprodukter!C15>1,VLOOKUP(Gødningsprodukter!C15,ProduktNavneTabel,2),"") ->  | E36: =IF(Gødningsprodukter!V15<>0,Gødningsprodukter!V15,"") ->  | G36: =IF(Gødningsprodukter!W15<>0,Gødningsprodukter!W15,"") ->  | I36: =IF(Gødningsprodukter!X15<>0,Gødningsprodukter!X15,"") ->  | K36: =IF(Gødningsprodukter!Y15<>0,Gødningsprodukter!Y15,"") ->  | M36: =IF(Gødningsprodukter!Z15<>0,Gødningsprodukter!Z15,"") ->  | N36: =IF(Gødningsprodukter!AA15<>0,Gødningsprodukter!AA15,"") ->  | O36: =IF(Gødningsprodukter!AB15<>0,Gødningsprodukter!AB15,"") ->  | P36: =IF(Gødningsprodukter!AC15<>0,Gødningsprodukter!AC15,"") ->  | Q36: =IF(Gødningsprodukter!AD15<>0,Gødningsprodukter!AD15,"") -> 
A37: =IF(Gødningsprodukter!C16>1,VLOOKUP(Gødningsprodukter!C16,ProduktNavneTabel,2),"") ->  | E37: =IF(Gødningsprodukter!V16<>0,Gødningsprodukter!V16,"") ->  | G37: =IF(Gødningsprodukter!W16<>0,Gødningsprodukter!W16,"") ->  | I37: =IF(Gødningsprodukter!X16<>0,Gødningsprodukter!X16,"") ->  | K37: =IF(Gødningsprodukter!Y16<>0,Gødningsprodukter!Y16,"") ->  | M37: =IF(Gødningsprodukter!Z16<>0,Gødningsprodukter!Z16,"") ->  | N37: =IF(Gødningsprodukter!AA16<>0,Gødningsprodukter!AA16,"") ->  | O37: =IF(Gødningsprodukter!AB16<>0,Gødningsprodukter!AB16,"") ->  | P37: =IF(Gødningsprodukter!AC16<>0,Gødningsprodukter!AC16,"") ->  | Q37: =IF(Gødningsprodukter!AD16<>0,Gødningsprodukter!AD16,"") -> 
A38: =IF(Gødningsprodukter!C17>1,VLOOKUP(Gødningsprodukter!C17,ProduktNavneTabel,2),"") ->  | E38: =IF(Gødningsprodukter!V17<>0,Gødningsprodukter!V17,"") ->  | G38: =IF(Gødningsprodukter!W17<>0,Gødningsprodukter!W17,"") ->  | I38: =IF(Gødningsprodukter!X17<>0,Gødningsprodukter!X17,"") ->  | K38: =IF(Gødningsprodukter!Y17<>0,Gødningsprodukter!Y17,"") ->  | M38: =IF(Gødningsprodukter!Z17<>0,Gødningsprodukter!Z17,"") ->  | N38: =IF(Gødningsprodukter!AA17<>0,Gødningsprodukter!AA17,"") ->  | O38: =IF(Gødningsprodukter!AB17<>0,Gødningsprodukter!AB17,"") ->  | P38: =IF(Gødningsprodukter!AC17<>0,Gødningsprodukter!AC17,"") ->  | Q38: =IF(Gødningsprodukter!AD17<>0,Gødningsprodukter!AD17,"") -> 
A39: =IF(Gødningsprodukter!C18>1,VLOOKUP(Gødningsprodukter!C18,ProduktNavneTabel,2),"") ->  | E39: =IF(Gødningsprodukter!V18<>0,Gødningsprodukter!V18,"") ->  | G39: =IF(Gødningsprodukter!W18<>0,Gødningsprodukter!W18,"") ->  | I39: =IF(Gødningsprodukter!X18<>0,Gødningsprodukter!X18,"") ->  | K39: =IF(Gødningsprodukter!Y18<>0,Gødningsprodukter!Y18,"") ->  | M39: =IF(Gødningsprodukter!Z18<>0,Gødningsprodukter!Z18,"") ->  | N39: =IF(Gødningsprodukter!AA18<>0,Gødningsprodukter!AA18,"") ->  | O39: =IF(Gødningsprodukter!AB18<>0,Gødningsprodukter!AB18,"") ->  | P39: =IF(Gødningsprodukter!AC18<>0,Gødningsprodukter!AC18,"") ->  | Q39: =IF(Gødningsprodukter!AD18<>0,Gødningsprodukter!AD18,"") -> 
A40: =IF(Gødningsprodukter!C19>1,VLOOKUP(Gødningsprodukter!C19,ProduktNavneTabel,2),"") ->  | E40: =IF(Gødningsprodukter!V19<>0,Gødningsprodukter!V19,"") ->  | G40: =IF(Gødningsprodukter!W19<>0,Gødningsprodukter!W19,"") ->  | I40: =IF(Gødningsprodukter!X19<>0,Gødningsprodukter!X19,"") ->  | K40: =IF(Gødningsprodukter!Y19<>0,Gødningsprodukter!Y19,"") ->  | M40: =IF(Gødningsprodukter!Z19<>0,Gødningsprodukter!Z19,"") ->  | N40: =IF(Gødningsprodukter!AA19<>0,Gødningsprodukter!AA19,"") ->  | O40: =IF(Gødningsprodukter!AB19<>0,Gødningsprodukter!AB19,"") ->  | P40: =IF(Gødningsprodukter!AC19<>0,Gødningsprodukter!AC19,"") ->  | Q40: =IF(Gødningsprodukter!AD19<>0,Gødningsprodukter!AD19,"") -> 
A41: =IF(Gødningsprodukter!C20>1,VLOOKUP(Gødningsprodukter!C20,ProduktNavneTabel,2),"") ->  | E41: =IF(Gødningsprodukter!V20<>0,Gødningsprodukter!V20,"") ->  | G41: =IF(Gødningsprodukter!W20<>0,Gødningsprodukter!W20,"") ->  | I41: =IF(Gødningsprodukter!X20<>0,Gødningsprodukter!X20,"") ->  | K41: =IF(Gødningsprodukter!Y20<>0,Gødningsprodukter!Y20,"") ->  | M41: =IF(Gødningsprodukter!Z20<>0,Gødningsprodukter!Z20,"") ->  | N41: =IF(Gødningsprodukter!AA20<>0,Gødningsprodukter!AA20,"") ->  | O41: =IF(Gødningsprodukter!AB20<>0,Gødningsprodukter!AB20,"") ->  | P41: =IF(Gødningsprodukter!AC20<>0,Gødningsprodukter!AC20,"") ->  | Q41: =IF(Gødningsprodukter!AD20<>0,Gødningsprodukter!AD20,"") -> 
B51: Version: | D51: =Portal!G17 -> Version 2.0 | H51: Udskriftsdato: | K51: =TODAY() -> 2017-12-07 | P51: Side 1
A53: Beregningsforudsætninger
A56: Næringsstofindhold, gødningsværdi og indkøbspris
A58: Gødningsprodukt | G58: Næringsstofindhold, kg pr. ton | M58: Nudn. | N58: Værdi, | P58: Indkøb,
G59: Ntot | H59: NNH4 | I59: P | J59: K | K59: S | L59: Mg | M59: pct. | N59: kr. pr. ton | P59: kr. pr. ton
A60: =IF(Gødningsprodukter!C11>1,VLOOKUP(Gødningsprodukter!C11,ProduktNavneTabel,2),"") ->  | G60: =IF(Gødningsprodukter!D11<>0,Gødningsprodukter!D11,"") ->  | H60: =IF(Gødningsprodukter!E11<>0,Gødningsprodukter!E11,"") ->  | I60: =IF(Gødningsprodukter!F11<>0,Gødningsprodukter!F11,"") ->  | J60: =IF(Gødningsprodukter!G11<>0,Gødningsprodukter!G11,"") ->  | K60: =IF(Gødningsprodukter!H11<>0,Gødningsprodukter!H11,"") ->  | L60: =IF(Gødningsprodukter!I11<>0,Gødningsprodukter!I11,"") ->  | M60: =IF(Gødningsprodukter!K11<>0,Gødningsprodukter!K11,"") ->  | N60: =IF(Gødningsprodukter!L11<>0,Gødningsprodukter!L11,"") ->  | P60: =IF(Gødningsprodukter!M11<>0,Gødningsprodukter!M11,"") -> 
A61: =IF(Gødningsprodukter!C12>1,VLOOKUP(Gødningsprodukter!C12,ProduktNavneTabel,2),"") ->  | G61: =IF(Gødningsprodukter!D12<>0,Gødningsprodukter!D12,"") ->  | H61: =IF(Gødningsprodukter!E12<>0,Gødningsprodukter!E12,"") ->  | I61: =IF(Gødningsprodukter!F12<>0,Gødningsprodukter!F12,"") ->  | J61: =IF(Gødningsprodukter!G12<>0,Gødningsprodukter!G12,"") ->  | K61: =IF(Gødningsprodukter!H12<>0,Gødningsprodukter!H12,"") ->  | L61: =IF(Gødningsprodukter!I12<>0,Gødningsprodukter!I12,"") ->  | M61: =IF(Gødningsprodukter!K12<>0,Gødningsprodukter!K12,"") ->  | N61: =IF(Gødningsprodukter!L12<>0,Gødningsprodukter!L12,"") ->  | P61: =IF(Gødningsprodukter!M12<>0,Gødningsprodukter!M12,"") -> 
A62: =IF(Gødningsprodukter!C13>1,VLOOKUP(Gødningsprodukter!C13,ProduktNavneTabel,2),"") ->  | G62: =IF(Gødningsprodukter!D13<>0,Gødningsprodukter!D13,"") ->  | H62: =IF(Gødningsprodukter!E13<>0,Gødningsprodukter!E13,"") ->  | I62: =IF(Gødningsprodukter!F13<>0,Gødningsprodukter!F13,"") ->  | J62: =IF(Gødningsprodukter!G13<>0,Gødningsprodukter!G13,"") ->  | K62: =IF(Gødningsprodukter!H13<>0,Gødningsprodukter!H13,"") ->  | L62: =IF(Gødningsprodukter!I13<>0,Gødningsprodukter!I13,"") ->  | M62: =IF(Gødningsprodukter!K13<>0,Gødningsprodukter!K13,"") ->  | N62: =IF(Gødningsprodukter!L13<>0,Gødningsprodukter!L13,"") ->  | P62: =IF(Gødningsprodukter!M13<>0,Gødningsprodukter!M13,"") -> 
A63: =IF(Gødningsprodukter!C14>1,VLOOKUP(Gødningsprodukter!C14,ProduktNavneTabel,2),"") ->  | G63: =IF(Gødningsprodukter!D14<>0,Gødningsprodukter!D14,"") ->  | H63: =IF(Gødningsprodukter!E14<>0,Gødningsprodukter!E14,"") ->  | I63: =IF(Gødningsprodukter!F14<>0,Gødningsprodukter!F14,"") ->  | J63: =IF(Gødningsprodukter!G14<>0,Gødningsprodukter!G14,"") ->  | K63: =IF(Gødningsprodukter!H14<>0,Gødningsprodukter!H14,"") ->  | L63: =IF(Gødningsprodukter!I14<>0,Gødningsprodukter!I14,"") ->  | M63: =IF(Gødningsprodukter!K14<>0,Gødningsprodukter!K14,"") ->  | N63: =IF(Gødningsprodukter!L14<>0,Gødningsprodukter!L14,"") ->  | P63: =IF(Gødningsprodukter!M14<>0,Gødningsprodukter!M14,"") -> 
A64: =IF(Gødningsprodukter!C15>1,VLOOKUP(Gødningsprodukter!C15,ProduktNavneTabel,2),"") ->  | G64: =IF(Gødningsprodukter!D15<>0,Gødningsprodukter!D15,"") ->  | H64: =IF(Gødningsprodukter!E15<>0,Gødningsprodukter!E15,"") ->  | I64: =IF(Gødningsprodukter!F15<>0,Gødningsprodukter!F15,"") ->  | J64: =IF(Gødningsprodukter!G15<>0,Gødningsprodukter!G15,"") ->  | K64: =IF(Gødningsprodukter!H15<>0,Gødningsprodukter!H15,"") ->  | L64: =IF(Gødningsprodukter!I15<>0,Gødningsprodukter!I15,"") ->  | M64: =IF(Gødningsprodukter!K15<>0,Gødningsprodukter!K15,"") ->  | N64: =IF(Gødningsprodukter!L15<>0,Gødningsprodukter!L15,"") ->  | P64: =IF(Gødningsprodukter!M15<>0,Gødningsprodukter!M15,"") -> 
A65: =IF(Gødningsprodukter!C16>1,VLOOKUP(Gødningsprodukter!C16,ProduktNavneTabel,2),"") ->  | G65: =IF(Gødningsprodukter!D16<>0,Gødningsprodukter!D16,"") ->  | H65: =IF(Gødningsprodukter!E16<>0,Gødningsprodukter!E16,"") ->  | I65: =IF(Gødningsprodukter!F16<>0,Gødningsprodukter!F16,"") ->  | J65: =IF(Gødningsprodukter!G16<>0,Gødningsprodukter!G16,"") ->  | K65: =IF(Gødningsprodukter!H16<>0,Gødningsprodukter!H16,"") ->  | L65: =IF(Gødningsprodukter!I16<>0,Gødningsprodukter!I16,"") ->  | M65: =IF(Gødningsprodukter!K16<>0,Gødningsprodukter!K16,"") ->  | N65: =IF(Gødningsprodukter!L16<>0,Gødningsprodukter!L16,"") ->  | P65: =IF(Gødningsprodukter!M16<>0,Gødningsprodukter!M16,"") -> 
A66: =IF(Gødningsprodukter!C17>1,VLOOKUP(Gødningsprodukter!C17,ProduktNavneTabel,2),"") ->  | G66: =IF(Gødningsprodukter!D17<>0,Gødningsprodukter!D17,"") ->  | H66: =IF(Gødningsprodukter!E17<>0,Gødningsprodukter!E17,"") ->  | I66: =IF(Gødningsprodukter!F17<>0,Gødningsprodukter!F17,"") ->  | J66: =IF(Gødningsprodukter!G17<>0,Gødningsprodukter!G17,"") ->  | K66: =IF(Gødningsprodukter!H17<>0,Gødningsprodukter!H17,"") ->  | L66: =IF(Gødningsprodukter!I17<>0,Gødningsprodukter!I17,"") ->  | M66: =IF(Gødningsprodukter!K17<>0,Gødningsprodukter!K17,"") ->  | N66: =IF(Gødningsprodukter!L17<>0,Gødningsprodukter!L17,"") ->  | P66: =IF(Gødningsprodukter!M17<>0,Gødningsprodukter!M17,"") -> 
A67: =IF(Gødningsprodukter!C18>1,VLOOKUP(Gødningsprodukter!C18,ProduktNavneTabel,2),"") ->  | G67: =IF(Gødningsprodukter!D18<>0,Gødningsprodukter!D18,"") ->  | H67: =IF(Gødningsprodukter!E18<>0,Gødningsprodukter!E18,"") ->  | I67: =IF(Gødningsprodukter!F18<>0,Gødningsprodukter!F18,"") ->  | J67: =IF(Gødningsprodukter!G18<>0,Gødningsprodukter!G18,"") ->  | K67: =IF(Gødningsprodukter!H18<>0,Gødningsprodukter!H18,"") ->  | L67: =IF(Gødningsprodukter!I18<>0,Gødningsprodukter!I18,"") ->  | M67: =IF(Gødningsprodukter!K18<>0,Gødningsprodukter!K18,"") ->  | N67: =IF(Gødningsprodukter!L18<>0,Gødningsprodukter!L18,"") ->  | P67: =IF(Gødningsprodukter!M18<>0,Gødningsprodukter!M18,"") -> 
A68: =IF(Gødningsprodukter!C19>1,VLOOKUP(Gødningsprodukter!C19,ProduktNavneTabel,2),"") ->  | G68: =IF(Gødningsprodukter!D19<>0,Gødningsprodukter!D19,"") ->  | H68: =IF(Gødningsprodukter!E19<>0,Gødningsprodukter!E19,"") ->  | I68: =IF(Gødningsprodukter!F19<>0,Gødningsprodukter!F19,"") ->  | J68: =IF(Gødningsprodukter!G19<>0,Gødningsprodukter!G19,"") ->  | K68: =IF(Gødningsprodukter!H19<>0,Gødningsprodukter!H19,"") ->  | L68: =IF(Gødningsprodukter!I19<>0,Gødningsprodukter!I19,"") ->  | M68: =IF(Gødningsprodukter!K19<>0,Gødningsprodukter!K19,"") ->  | N68: =IF(Gødningsprodukter!L19<>0,Gødningsprodukter!L19,"") ->  | P68: =IF(Gødningsprodukter!M19<>0,Gødningsprodukter!M19,"") -> 
A69: =IF(Gødningsprodukter!C20>1,VLOOKUP(Gødningsprodukter!C20,ProduktNavneTabel,2),"") ->  | G69: =IF(Gødningsprodukter!D20<>0,Gødningsprodukter!D20,"") ->  | H69: =IF(Gødningsprodukter!E20<>0,Gødningsprodukter!E20,"") ->  | I69: =IF(Gødningsprodukter!F20<>0,Gødningsprodukter!F20,"") ->  | J69: =IF(Gødningsprodukter!G20<>0,Gødningsprodukter!G20,"") ->  | K69: =IF(Gødningsprodukter!H20<>0,Gødningsprodukter!H20,"") ->  | L69: =IF(Gødningsprodukter!I20<>0,Gødningsprodukter!I20,"") ->  | M69: =IF(Gødningsprodukter!K20<>0,Gødningsprodukter!K20,"") ->  | N69: =IF(Gødningsprodukter!L20<>0,Gødningsprodukter!L20,"") ->  | P69: =IF(Gødningsprodukter!M20<>0,Gødningsprodukter!M20,"") -> 
A72: Transport, lagring og udbringning
F73: Transport | L73: Lagring | N73: Udbringning
A74: Gødningsprodukt | F74: Form | H74: Afstand, | J74: Pris, | L74: Pris, | N74: Nedfæld- | P74: Pris,
H75: km | J75: kr. pr. ton | L75: kr. pr. ton | N75: ning? | P75: kr. pr. ton
A76: =IF(Gødningsprodukter!C11>1,VLOOKUP(Gødningsprodukter!C11,ProduktNavneTabel,2),"") ->  | F76: =IF(Gødningsprodukter!C11>1,IF(Gødningsprodukter!AH11=TRUE,Gødningsprodukter!AE11,"-"),"") ->  | H76: =IF(Gødningsprodukter!C11>1,IF(Gødningsprodukter!AH11=TRUE,Gødningsprodukter!P11,"-"),"") ->  | J76: =IF(Gødningsprodukter!C11>1,IF(Gødningsprodukter!AH11=TRUE,Gødningsprodukter!Q11,"-"),"") ->  | L76: =IF(Gødningsprodukter!C11>1,IF(Gødningsprodukter!AI11=TRUE,Gødningsprodukter!S11,"-"),"") ->  | N76: =IF(Gødningsprodukter!C11>1,IF(Gødningsprodukter!AJ11=TRUE,"Ja","Nej"),"") ->  | P76: =IF(Gødningsprodukter!C11>1,Gødningsprodukter!U11,"") -> 
A77: =IF(Gødningsprodukter!C12>1,VLOOKUP(Gødningsprodukter!C12,ProduktNavneTabel,2),"") ->  | F77: =IF(Gødningsprodukter!C12>1,IF(Gødningsprodukter!AH12=TRUE,Gødningsprodukter!AE12,"-"),"") ->  | H77: =IF(Gødningsprodukter!C12>1,IF(Gødningsprodukter!AH12=TRUE,Gødningsprodukter!P12,"-"),"") ->  | J77: =IF(Gødningsprodukter!C12>1,IF(Gødningsprodukter!AH12=TRUE,Gødningsprodukter!Q12,"-"),"") ->  | L77: =IF(Gødningsprodukter!C12>1,IF(Gødningsprodukter!AI12=TRUE,Gødningsprodukter!S12,"-"),"") ->  | N77: =IF(Gødningsprodukter!C12>1,IF(Gødningsprodukter!AJ12=TRUE,"Ja","Nej"),"") ->  | P77: =IF(Gødningsprodukter!C12>1,Gødningsprodukter!U12,"") -> 
A78: =IF(Gødningsprodukter!C13>1,VLOOKUP(Gødningsprodukter!C13,ProduktNavneTabel,2),"") ->  | F78: =IF(Gødningsprodukter!C13>1,IF(Gødningsprodukter!AH13=TRUE,Gødningsprodukter!AE13,"-"),"") ->  | H78: =IF(Gødningsprodukter!C13>1,IF(Gødningsprodukter!AH13=TRUE,Gødningsprodukter!P13,"-"),"") ->  | J78: =IF(Gødningsprodukter!C13>1,IF(Gødningsprodukter!AH13=TRUE,Gødningsprodukter!Q13,"-"),"") ->  | L78: =IF(Gødningsprodukter!C13>1,IF(Gødningsprodukter!AI13=TRUE,Gødningsprodukter!S13,"-"),"") ->  | N78: =IF(Gødningsprodukter!C13>1,IF(Gødningsprodukter!AJ13=TRUE,"Ja","Nej"),"") ->  | P78: =IF(Gødningsprodukter!C13>1,Gødningsprodukter!U13,"") -> 
A79: =IF(Gødningsprodukter!C14>1,VLOOKUP(Gødningsprodukter!C14,ProduktNavneTabel,2),"") ->  | F79: =IF(Gødningsprodukter!C14>1,IF(Gødningsprodukter!AH14=TRUE,Gødningsprodukter!AE14,"-"),"") ->  | H79: =IF(Gødningsprodukter!C14>1,IF(Gødningsprodukter!AH14=TRUE,Gødningsprodukter!P14,"-"),"") ->  | J79: =IF(Gødningsprodukter!C14>1,IF(Gødningsprodukter!AH14=TRUE,Gødningsprodukter!Q14,"-"),"") ->  | L79: =IF(Gødningsprodukter!C14>1,IF(Gødningsprodukter!AI14=TRUE,Gødningsprodukter!S14,"-"),"") ->  | N79: =IF(Gødningsprodukter!C14>1,IF(Gødningsprodukter!AJ14=TRUE,"Ja","Nej"),"") ->  | P79: =IF(Gødningsprodukter!C14>1,Gødningsprodukter!U14,"") -> 
A80: =IF(Gødningsprodukter!C15>1,VLOOKUP(Gødningsprodukter!C15,ProduktNavneTabel,2),"") ->  | F80: =IF(Gødningsprodukter!C15>1,IF(Gødningsprodukter!AH15=TRUE,Gødningsprodukter!AE15,"-"),"") ->  | H80: =IF(Gødningsprodukter!C15>1,IF(Gødningsprodukter!AH15=TRUE,Gødningsprodukter!P15,"-"),"") ->  | J80: =IF(Gødningsprodukter!C15>1,IF(Gødningsprodukter!AH15=TRUE,Gødningsprodukter!Q15,"-"),"") ->  | L80: =IF(Gødningsprodukter!C15>1,IF(Gødningsprodukter!AI15=TRUE,Gødningsprodukter!S15,"-"),"") ->  | N80: =IF(Gødningsprodukter!C15>1,IF(Gødningsprodukter!AJ15=TRUE,"Ja","Nej"),"") ->  | P80: =IF(Gødningsprodukter!C15>1,Gødningsprodukter!U15,"") -> 
A81: =IF(Gødningsprodukter!C16>1,VLOOKUP(Gødningsprodukter!C16,ProduktNavneTabel,2),"") ->  | F81: =IF(Gødningsprodukter!C16>1,IF(Gødningsprodukter!AH16=TRUE,Gødningsprodukter!AE16,"-"),"") ->  | H81: =IF(Gødningsprodukter!C16>1,IF(Gødningsprodukter!AH16=TRUE,Gødningsprodukter!P16,"-"),"") ->  | J81: =IF(Gødningsprodukter!C16>1,IF(Gødningsprodukter!AH16=TRUE,Gødningsprodukter!Q16,"-"),"") ->  | L81: =IF(Gødningsprodukter!C16>1,IF(Gødningsprodukter!AI16=TRUE,Gødningsprodukter!S16,"-"),"") ->  | N81: =IF(Gødningsprodukter!C16>1,IF(Gødningsprodukter!AJ16=TRUE,"Ja","Nej"),"") ->  | P81: =IF(Gødningsprodukter!C16>1,Gødningsprodukter!U16,"") -> 
A82: =IF(Gødningsprodukter!C17>1,VLOOKUP(Gødningsprodukter!C17,ProduktNavneTabel,2),"") ->  | F82: =IF(Gødningsprodukter!C17>1,IF(Gødningsprodukter!AH17=TRUE,Gødningsprodukter!AE17,"-"),"") ->  | H82: =IF(Gødningsprodukter!C17>1,IF(Gødningsprodukter!AH17=TRUE,Gødningsprodukter!P17,"-"),"") ->  | J82: =IF(Gødningsprodukter!C17>1,IF(Gødningsprodukter!AH17=TRUE,Gødningsprodukter!Q17,"-"),"") ->  | L82: =IF(Gødningsprodukter!C17>1,IF(Gødningsprodukter!AI17=TRUE,Gødningsprodukter!S17,"-"),"") ->  | N82: =IF(Gødningsprodukter!C17>1,IF(Gødningsprodukter!AJ17=TRUE,"Ja","Nej"),"") ->  | P82: =IF(Gødningsprodukter!C17>1,Gødningsprodukter!U17,"") -> 
A83: =IF(Gødningsprodukter!C18>1,VLOOKUP(Gødningsprodukter!C18,ProduktNavneTabel,2),"") ->  | F83: =IF(Gødningsprodukter!C18>1,IF(Gødningsprodukter!AH18=TRUE,Gødningsprodukter!AE18,"-"),"") ->  | H83: =IF(Gødningsprodukter!C18>1,IF(Gødningsprodukter!AH18=TRUE,Gødningsprodukter!P18,"-"),"") ->  | J83: =IF(Gødningsprodukter!C18>1,IF(Gødningsprodukter!AH18=TRUE,Gødningsprodukter!Q18,"-"),"") ->  | L83: =IF(Gødningsprodukter!C18>1,IF(Gødningsprodukter!AI18=TRUE,Gødningsprodukter!S18,"-"),"") ->  | N83: =IF(Gødningsprodukter!C18>1,IF(Gødningsprodukter!AJ18=TRUE,"Ja","Nej"),"") ->  | P83: =IF(Gødningsprodukter!C18>1,Gødningsprodukter!U18,"") -> 
A84: =IF(Gødningsprodukter!C19>1,VLOOKUP(Gødningsprodukter!C19,ProduktNavneTabel,2),"") ->  | F84: =IF(Gødningsprodukter!C19>1,IF(Gødningsprodukter!AH19=TRUE,Gødningsprodukter!AE19,"-"),"") ->  | H84: =IF(Gødningsprodukter!C19>1,IF(Gødningsprodukter!AH19=TRUE,Gødningsprodukter!P19,"-"),"") ->  | J84: =IF(Gødningsprodukter!C19>1,IF(Gødningsprodukter!AH19=TRUE,Gødningsprodukter!Q19,"-"),"") ->  | L84: =IF(Gødningsprodukter!C19>1,IF(Gødningsprodukter!AI19=TRUE,Gødningsprodukter!S19,"-"),"") ->  | N84: =IF(Gødningsprodukter!C19>1,IF(Gødningsprodukter!AJ19=TRUE,"Ja","Nej"),"") ->  | P84: =IF(Gødningsprodukter!C19>1,Gødningsprodukter!U19,"") -> 
A85: =IF(Gødningsprodukter!C20>1,VLOOKUP(Gødningsprodukter!C20,ProduktNavneTabel,2),"") ->  | F85: =IF(Gødningsprodukter!C20>1,IF(Gødningsprodukter!AH20=TRUE,Gødningsprodukter!AE20,"-"),"") ->  | H85: =IF(Gødningsprodukter!C20>1,IF(Gødningsprodukter!AH20=TRUE,Gødningsprodukter!P20,"-"),"") ->  | J85: =IF(Gødningsprodukter!C20>1,IF(Gødningsprodukter!AH20=TRUE,Gødningsprodukter!Q20,"-"),"") ->  | L85: =IF(Gødningsprodukter!C20>1,IF(Gødningsprodukter!AI20=TRUE,Gødningsprodukter!S20,"-"),"") ->  | N85: =IF(Gødningsprodukter!C20>1,IF(Gødningsprodukter!AJ20=TRUE,"Ja","Nej"),"") ->  | P85: =IF(Gødningsprodukter!C20>1,Gødningsprodukter!U20,"") -> 
A88: Transportomkostninger
L89: Læsse og | N89: Køre-
A90: Transportform | E90: Produktform | J90: Timepris, | L90: lodse, | N90: hastighed, | P90: Læsstr.,
J91: kr. pr. time | L91: min. pr. læs | N91: km/t | P91: ton pr. læs
A92: Lastbil | E92: Fast | J92: =Forudsætninger!D16 -> 700 | L92: =Forudsætninger!F16 -> 10 | N92: =Forudsætninger!G16 -> 70 | P92: =Forudsætninger!H16 -> 20
E93: Flydende | J93: =Forudsætninger!D17 -> 700 | L93: =Forudsætninger!F17 -> 4 | N93: =Forudsætninger!G17 -> 70 | P93: =Forudsætninger!H17 -> 30
E94: Granulat | J94: =Forudsætninger!D18 -> 700 | L94: =Forudsætninger!F18 -> 20 | N94: =Forudsætninger!G18 -> 70 | P94: =Forudsætninger!H18 -> 20
A95: Traktor | E95: Fast | J95: =Forudsætninger!D19 -> 900 | L95: =Forudsætninger!F19 -> 10 | N95: =Forudsætninger!G19 -> 20 | P95: =Forudsætninger!H19 -> 15
E96: Flydende | J96: =Forudsætninger!D20 -> 900 | L96: =Forudsætninger!F20 -> 3 | N96: =Forudsætninger!G20 -> 20 | P96: =Forudsætninger!H20 -> 25
E97: Granulat | J97: =Forudsætninger!D21 -> 900 | L97: =Forudsætninger!F21 -> 20 | N97: =Forudsætninger!G21 -> 20 | P97: =Forudsætninger!H21 -> 20
P101: Side 2

Sheet Gødningsoversigt
B1: Oversigt over typer og indhold af gødninger godkendt til økologisk brug
B3: Klik på navnet og få detaljeret information om den enkelte gødning
B4: OBS: Alle priser er blot vejledende. Tilret derfor altid til lokale forhold.
E7: Næringsstofindhold, kg pr. ton (vejledende) | K7: N-udn% | L7: Produkt | M7: Indkøb, | N7: Lagring, | O7: Udbring- | W7: Næringsstofindhold, kg pr. ton (vejledende) | AC7: N-udn% | AE7: Indkøb, | AF7: Lagring, | AG7: Udbring-
C8: Forhandler | D8: Lokalitet | E8: Total-N | F8: NH4-N | G8: Fosfor | H8: Kalium | I8: Svovl | J8: Magne-sium | K8: Forventet 1. års | L8: form | M8: kr./ton vejl. | N8: kr./ ton | O8: ning, kr./ton | T8: Husdyrgødninger | U8: Forhandler | V8: Lokalitet | W8: Total-N | X8: NH4-N | Y8: Fosfor | Z8: Kalium | AA8: Svovl | AB8: Magne-sium | AC8: Forventet | AD8: Produkt-form | AE8: kr./ton | AF8: kr. pr. ton | AG8: ning, kr. pr. ton
T9: Husdyrgødninger
B10: Husdyrgødninger
B11: Kvæggylle | D11: Lokalt | E11: 4.4 | F11: 2.6 | G11: 0.7 | H11: 3.2 | K11: 55 | L11: Flydende | N11: 12 | O11: 20 | T11: Kvæggylle | V11: Lokalt | W11: 4.4 | X11: 2.6 | Y11: 0.7 | Z11: 3.2 | AC11: 55 | AD11: Flydende | AF11: 12 | AG11: 20
B12: Sogylle | D12: Lokalt | E12: 3.9 | F12: 2.9 | G12: 1 | H12: 1.7 | K12: 65 | L12: Flydende | N12: 12 | O12: 20 | T12: Sogylle | V12: Lokalt | W12: 3.9 | X12: 2.9 | Y12: 1 | Z12: 1.7 | AC12: 65 | AD12: Flydende | AF12: 12 | AG12: 20
B13: Slagtesvinegylle | D13: Lokalt | E13: 4.5 | F13: 3.4 | G13: 1.2 | H13: 2.6 | K13: 65 | L13: Flydende | N13: 12 | O13: 20 | T13: Slagtesvinegylle | V13: Lokalt | W13: 4.5 | X13: 3.4 | Y13: 1.2 | Z13: 2.6 | AC13: 65 | AD13: Flydende | AF13: 12 | AG13: 20
B14: Fast gødning, høns. | D14: Lokalt | E14: 18.5 | F14: 6.5 | G14: 6 | H14: 9.7 | K14: 60 | L14: Fast | N14: 20 | O14: 30 | T14: Fast gødning, høns. | V14: Lokalt | W14: 18.5 | X14: 6.5 | Y14: 6 | Z14: 9.7 | AC14: 60 | AD14: Fast | AF14: 20 | AG14: 30
B15: Dybstrøelse, slagtekyll. | D15: Lokalt | E15: 26.6 | F15: 8 | G15: 8.4 | H15: 17.4 | K15: 60 | L15: Fast | N15: 20 | O15: 30 | T15: Dybstrøelse, slagtekyll. | V15: Lokalt | W15: 26.6 | X15: 8 | Y15: 8.4 | Z15: 17.4 | AC15: 60 | AD15: Fast | AF15: 20 | AG15: 30
B16: Dybstøelse, kvæg | D16: Lokalt | E16: 7.5 | F16: 1.5 | G16: 1.1 | H16: 8 | K16: 30 | L16: Fast | N16: 20 | O16: 30 | T16: Dybstøelse, kvæg | V16: Lokalt | W16: 7.5 | X16: 1.5 | Y16: 1.1 | Z16: 8 | AC16: 30 | AD16: Fast | AF16: 20 | AG16: 30
B17: Minkgylle | D17: Lokalt | E17: 8.6 | F17: 3.8 | G17: 3.2 | H17: 1.7 | K17: 65 | L17: Flydende | N17: 12 | O17: 20 | T17: Minkgylle | V17: Lokalt | W17: 8.6 | X17: 3.8 | Y17: 3.2 | Z17: 1.7 | AC17: 65 | AD17: Flydende | AF17: 12 | AG17: 20
B18: Hestedybstrøelse | D18: Lokalt | E18: 7.7 | F18: 1.9 | G18: 1.6 | H18: 13 | K18: 30 | L18: Fast | N18: 20 | O18: 30 | T18: Hestedybstrøelse | V18: Lokalt | W18: 7.7 | X18: 1.9 | Y18: 1.6 | Z18: 13 | AC18: 30 | AD18: Fast | AF18: 20 | AG18: 30
B22: Andre gødninger med N | T22: Andre gødninger med N
B23: Øgro 10-3-1 | C23: DAKA | D23: Hele landet | E23: 100 | G23: 26 | H23: 10 | I23: 5 | J23: 2 | K23: 70 | L23: Fast | M23: 2500 | N23: 0 | O23: 50 | T23: Øgro 10-3-1 | U23: DAKA | V23: Hele landet | W23: 100 | Y23: 26 | Z23: 10 | AA23: 5 | AB23: 2 | AC23: 70 | AD23: Fast | AE23: 2500 | AF23: 0 | AG23: 50
B24: Øgro 9-3-4 + 2S | C24: DAKA | D24: Hele landet | E24: 88 | G24: 25 | H24: 36 | I24: 24 | J24: 2 | K24: 70 | L24: Fast | M24: 3200 | N24: 0 | O24: 50 | T24: Øgro 9-3-4 + 2S | U24: DAKA | V24: Hele landet | W24: 88 | Y24: 25 | Z24: 36 | AA24: 24 | AB24: 2 | AC24: 70 | AD24: Fast | AE24: 3200 | AF24: 0 | AG24: 50
B25: Øgro 15N | C25: DAKA | D25: Hele landet | E25: 150 | G25: 3 | H25: 0.1 | I25: 22 | J25: 0.1 | K25: 70 | L25: Fast | M25: 4620 | N25: 0 | O25: 50 | T25: Øgro 15N | U25: DAKA | V25: Hele landet | W25: 150 | Y25: 3 | Z25: 0.1 | AA25: 22 | AB25: 0.1 | AC25: 70 | AD25: Fast | AE25: 4620 | AF25: 0 | AG25: 50
B26: Øgro Granulat 9-3-4 +2S | C26: DAKA | D26: Hele landet | E26: 88 | G26: 25 | H26: 36 | I26: 24 | J26: 2 | K26: 70 | L26: Fast | M26: 3700 | N26: 0 | O26: 50 | T26: Øgro Granulat 9-3-4 +2S | U26: DAKA | V26: Hele landet | W26: 88 | Y26: 25 | Z26: 36 | AA26: 24 | AB26: 2 | AC26: 70 | AD26: Fast | AE26: 3700 | AF26: 0 | AG26: 50
B27: Protamylasse | C27: AKS, AKK | D27: Jylland | E27: 15 | G27: 3 | H27: 36 | I27: 6 | J27: 2.9 | K27: 70 | L27: Flydende | M27: 210 | N27: 12 | O27: 20 | T27: Protamylasse | U27: AKS, AKK | V27: Jylland | W27: 15 | Y27: 3 | Z27: 36 | AA27: 6 | AB27: 2.9 | AC27: 70 | AD27: Flydende | AE27: 210 | AF27: 12 | AG27: 20
B28: K-2 (Protamylasse) | C28: AKV, Langholt | D28: Nordjylland | E28: 18 | G28: 4 | H28: 60 | I28: 7 | J28: 3 | K28: 70 | L28: Flydende | M28: 400 | N28: 12 | O28: 20 | T28: K-2 (Protamylasse) | U28: AKV, Langholt | V28: Nordjylland | W28: 18 | Y28: 4 | Z28: 60 | AA28: 7 | AB28: 3 | AC28: 70 | AD28: Flydende | AE28: 400 | AF28: 12 | AG28: 20
B29: Kartoffelfrugtsaft | C29: AKM | D29: Brande | E29: 1.05 | G29: 0.27 | H29: 3.6 | I29: 1.49 | J29: 0.16 | K29: 70 | L29: Flydende | M29: 0 | N29: 12 | O29: 20 | T29: Kartoffelfrugtsaft | U29: AKM | V29: Brande | W29: 1.05 | Y29: 0.27 | Z29: 3.6 | AA29: 1.49 | AB29: 0.16 | AC29: 70 | AD29: Flydende | AE29: 0 | AF29: 12 | AG29: 20
B30: kartoffekondensat | C30: Miljøservice | D30: Grindsted/Varde | E30: 1.1 | G30: 0.1 | H30: 1.6 | K30: 70 | L30: Flydende | M30: 0 | N30: 12 | O30: 20 | T30: kartoffekondensat | U30: Miljøservice | V30: Grindsted/Varde | W30: 1.1 | Y30: 0.1 | Z30: 1.6 | AC30: 70 | AD30: Flydende | AE30: 0 | AF30: 12 | AG30: 20
B31: Kaliumvinasse | C31: DLG | D31: Hele landet | E31: 7 | G31: 0 | H31: 210 | I31: 170 | J31: 2 | K31: 70 | L31: Fast | M31: 1800 | N31: 20 | O31: 75 | T31: Kaliumvinasse | U31: DLG | V31: Hele landet | W31: 7 | Y31: 0 | Z31: 210 | AA31: 170 | AB31: 2 | AC31: 70 | AD31: Fast | AE31: 1800 | AF31: 20 | AG31: 75
B32: Vinasse | C32: Brdr. Thorsen | D32: Jylland | E32: 35 | H32: 70 | K32: 70 | L32: Flydende | M32: 600 | N32: 20 | O32: 75 | T32: Vinasse | U32: Brdr. Thorsen | V32: Jylland | W32: 35 | Z32: 70 | AC32: 70 | AD32: Flydende | AE32: 600 | AF32: 20 | AG32: 75
B33: Vinasse-kali | C33: Brdr. Thorsen | D33: Jyland | E33: 8 | H33: 190 | I33: 70 | K33: 70 | L33: Flydende | M33: 700 | N33: 20 | O33: 75 | T33: Vinasse-kali | U33: Brdr. Thorsen | V33: Jyland | W33: 8 | Z33: 190 | AA33: 70 | AC33: 70 | AD33: Flydende | AE33: 700 | AF33: 20 | AG33: 75
B34: Kaliumvinasse ekstrakt K25 | C34: DLG, Danish Agro, Vestjyllands Andel | D34: Hele landet | E34: 3 | G34: 3 | H34: 250 | I34: 123 | J34: 0.2 | K34: 70 | L34: Fast | M34: 1930 | N34: 20 | O34: 75 | T34: Kaliumvinasse ekstrakt K25 | U34: DLG, Danish Agro, Vestjyllands Andel | V34: Hele landet | W34: 3 | Y34: 3 | Z34: 250 | AA34: 123 | AB34: 0.2 | AC34: 70 | AD34: Fast | AE34: 1930 | AF34: 20 | AG34: 75
B37: Binadan 4-1-3 | C37: Fousol Production; | D37: Hele landet | E37: 40 | G37: 8 | H37: 28 | J37: 6.4 | K37: 60 | L37: Fast | M37: 1980 | N37: 0 | O37: 50 | T37: Binadan 4-1-3 | U37: Fousol Production; | V37: Hele landet | W37: 40 | Y37: 8 | Z37: 28 | AB37: 6.4 | AC37: 60 | AD37: Fast | AE37: 1980 | AF37: 0 | AG37: 50
B38: DLG Kombigødning NPK 4-1-3 | C38: DLG | D38: Hele landet | E38: 36 | G38: 10 | H38: 25 | K38: 60 | L38: Fast | M38: 1750 | N38: 0 | O38: 50 | T38: DLG Kombigødning NPK 4-1-3 | U38: DLG | V38: Hele landet | W38: 36 | Y38: 10 | Z38: 25 | AC38: 60 | AD38: Fast | AE38: 1750 | AF38: 0 | AG38: 50
B39: Økogødning 6-1-1 | C39: Farmergødning | D39: Hele landet | E39: 60 | G39: 10 | H39: 10 | K39: 60 | L39: Fast | M39: 7300 | N39: 0 | O39: 50 | T39: Økogødning 6-1-1 | U39: Farmergødning | V39: Hele landet | W39: 60 | Y39: 10 | Z39: 10 | AC39: 60 | AD39: Fast | AE39: 7300 | AF39: 0 | AG39: 50
B40: Økogødning 5-1-1 | C40: Farmergødning | D40: Hele landet | E40: 50 | G40: 10 | H40: 10 | K40: 60 | L40: Fast | M40: 6000 | N40: 0 | O40: 50 | T40: Økogødning 5-1-1 | U40: Farmergødning | V40: Hele landet | W40: 50 | Y40: 10 | Z40: 10 | AC40: 60 | AD40: Fast | AE40: 6000 | AF40: 0 | AG40: 50
B41: Økohønsegødning 2-1-2 | C41: Farmergødning | D41: Hele landet | E41: 20 | G41: 10 | H41: 20 | K41: 25 | L41: Fast | M41: 4150 | N41: 0 | O41: 50 | T41: Økohønsegødning 2-1-2 | U41: Farmergødning | V41: Hele landet | W41: 20 | Y41: 10 | Z41: 20 | AC41: 25 | AD41: Fast | AE41: 4150 | AF41: 0 | AG41: 50
B42: Økohønsegødning 3-1-2 | C42: Farmergødning | D42: Hele landet | E42: 30 | G42: 10 | H42: 20 | K42: 60 | L42: Fast | M42: 4600 | N42: 0 | O42: 50 | T42: Økohønsegødning 3-1-2 | U42: Farmergødning | V42: Hele landet | W42: 30 | Y42: 10 | Z42: 20 | AC42: 60 | AD42: Fast | AE42: 4600 | AF42: 0 | AG42: 50
B43: Monterra 13 | C43: Borregaard Bioplant | D43: Hele landet | E43: 130 | H43: 4 | J43: 1 | K43: 70 | L43: Fast | M43: 7500 | N43: 0 | O43: 50 | T43: Monterra 13 | U43: Borregaard Bioplant | V43: Hele landet | W43: 130 | Z43: 4 | AB43: 1 | AC43: 70 | AD43: Fast | AE43: 7500 | AF43: 0 | AG43: 50
B44: Monterra-Malt | C44: Borregaard Bioplant | D44: Hele landet | E44: 40 | G44: 10 | H44: 50 | K44: 70 | L44: Fast | M44: 3500 | N44: 0 | O44: 50 | T44: Monterra-Malt | U44: Borregaard Bioplant | V44: Hele landet | W44: 40 | Y44: 10 | Z44: 50 | AC44: 70 | AD44: Fast | AE44: 3500 | AF44: 0 | AG44: 50
B45: PHC | C45: Borregaard Bioplant | D45: Hele landet | E45: 60 | G45: 10 | H45: 30 | I45: 15 | K45: 60 | L45: Fast | M45: 13000 | N45: 0 | O45: 50 | T45: PHC | U45: Borregaard Bioplant | V45: Hele landet | W45: 60 | Y45: 10 | Z45: 30 | AA45: 15 | AC45: 60 | AD45: Fast | AE45: 13000 | AF45: 0 | AG45: 50
B46: Tang | C46: Miljøservice | D46: Lokalt | E46: 53 | G46: 3 | K46: 10 | L46: Fast | N46: 0 | O46: 25 | T46: Tang | U46: Miljøservice | V46: Lokalt | W46: 53 | Y46: 3 | AC46: 10 | AD46: Fast | AF46: 0 | AG46: 25
B47: Ågrøde | C47: Miljøservice | D47: Lokalt | E47: 32 | G47: 9 | K47: 40 | L47: Fast | N47: 0 | O47: 25 | T47: Ågrøde | U47: Miljøservice | V47: Lokalt | W47: 32 | Y47: 9 | AC47: 40 | AD47: Fast | AF47: 0 | AG47: 25
B48: Haveparkaffald | C48: Affaldsselsk. Kommuner | D48: Lokalt | E48: 6 | G48: 1.1 | H48: 4 | I48: 0.7 | J48: 1.2 | K48: 0 | L48: Fast | M48: 0 | N48: 0 | O48: 25 | T48: Haveparkaffald | U48: Affaldsselsk. Kommuner | V48: Lokalt | W48: 6 | Y48: 1.1 | Z48: 4 | AA48: 0.7 | AB48: 1.2 | AC48: 0 | AD48: Fast | AE48: 0 | AF48: 0 | AG48: 25
B51: Andre gødninger uden N | T51: Andre gødninger uden N
B52: Patentkali | C52: DLG, Danish Agro, Vestjyllands Andel | D52: Hele landet | H52: 249 | I52: 170 | J52: 60 | L52: Granulat | M52: 3200 | N52: 0 | O52: 40 | T52: Patentkali | U52: DLG, Danish Agro, Vestjyllands Andel | V52: Hele landet | Z52: 249 | AA52: 170 | AB52: 60 | AD52: Granulat | AE52: 3200 | AF52: 0 | AG52: 40
B53: Kiserit 15 | C53: DLG, Danish Agro, Vestjyllands Andel | D53: Hele landet | I53: 200 | J53: 151 | L53: Granulat | M53: 2200 | N53: 0 | O53: 40 | T53: Kiserit 15 | U53: DLG, Danish Agro, Vestjyllands Andel | V53: Hele landet | AA53: 200 | AB53: 151 | AD53: Granulat | AE53: 2200 | AF53: 0 | AG53: 40
B54: Magnesia kainit | C54: Danish Agro, Vestjysk Andel | D54: Hele landet | H54: 91 | I54: 40 | J54: 30 | L54: Granulat | M54: 1450 | N54: 0 | O54: 40 | T54: Magnesia kainit | U54: Danish Agro, Vestjysk Andel | V54: Hele landet | Z54: 91 | AA54: 40 | AB54: 30 | AD54: Granulat | AE54: 1450 | AF54: 0 | AG54: 40
B55: Kaliumsulfat 41 | C55: DLG, Danish Agro, Vestjysk Andel | D55: Hele landet | H55: 415 | I55: 180 | L55: Granulat | M55: 4550 | N55: 0 | O55: 40 | T55: Kaliumsulfat 41 | U55: DLG, Danish Agro, Vestjysk Andel | V55: Hele landet | Z55: 415 | AA55: 180 | AD55: Granulat | AE55: 4550 | AF55: 0 | AG55: 40
B56: Træaske | C56: Miljøservice | D56: Lokalt | G56: 9.1 | H56: 24 | N56: 0 | O56: 75 | T56: Træaske | U56: Miljøservice | V56: Lokalt | Y56: 9.1 | Z56: 24 | AF56: 0 | AG56: 75
B58: Naturgips | C58: DLG, Vestjysk Andel og Brdr. Ewers. | D58: Hele landet | I58: 200 | L58: Granulat | M58: 1050 | N58: 0 | O58: 40 | T58: Naturgips | U58: DLG, Vestjysk Andel og Brdr. Ewers. | V58: Hele landet | AA58: 200 | AD58: Granulat | AE58: 1050 | AF58: 0 | AG58: 40
B59: Frit svovl | C59: Hedegaard A/S | D59: Hele landet | I59: 900 | L59: Granulat | M59: 3400 | N59: 0 | O59: 40 | T59: Frit svovl | U59: Hedegaard A/S | V59: Hele landet | AA59: 900 | AD59: Granulat | AE59: 3400 | AF59: 0 | AG59: 40
B61: Mobil grøngødning | T61: Mobil grøngødning
B62: Kommer i senere version | T62: Kommer i senere version
B64: Egne typer | T64: Egne typer
B65: Egen type 1 | T65: Egen type 1
B66: Egen type 2 | T66: Egen type 2
B67: Egen type 3 | T67: Egen type 3
B68: Egen type 4 | T68: Egen type 4
D88: Flydende
D89: Fast
D90: Granulat

Sheet Opslagstabeller
F2: Økologiske gødningsprodukter
I7: Næringsstofindhold, kg pr. ton | O7: N-udn. | P7: N-udn. | R7: Indkøb, | S7: Lagring, | T7: Udbring-
G8: Nr. | H8: Oprindelse | I8: Total-N | J8: NH4-N | K8: Fosfor | L8: Kalium | M8: Svovl | N8: Magne-sium | O8: krav, pct. | P8: fagl., pct. | Q8: Produkt-form | R8: kr./ton | S8: kr. pr. ton | T8: ning, kr. pr. ton
F9: 1 | G9: 2 | H9: 3 | I9: 4 | J9: 5 | K9: 6 | L9: 7 | M9: 8 | N9: 9 | O9: 10 | P9: 11 | Q9: 12 | R9: 13 | S9: 14 | T9: 15
F10: Vælg produkt | G10: 1 | V10: Produktnavnetabel
F11: =Gødningsoversigt!B11 -> Kvæggylle | G11: 2 | I11: =Gødningsoversigt!E11 -> 4.4 | J11: =Gødningsoversigt!F11 -> 2.6 | K11: =Gødningsoversigt!G11 -> 0.7 | L11: =Gødningsoversigt!H11 -> 3.2 | M11: =Gødningsoversigt!I11 -> 0 | N11: =Gødningsoversigt!J11 -> 0 | P11: =Gødningsoversigt!K11 -> 55 | Q11: =Gødningsoversigt!L11 -> Flydende | R11: =Gødningsoversigt!M11 -> 0 | S11: =Gødningsoversigt!N11 -> 12 | T11: =Gødningsoversigt!O11 -> 20 | V11: =G11 -> 2 | W11: =F11 -> Kvæggylle
F12: =Gødningsoversigt!B12 -> Sogylle | G12: 3 | I12: =Gødningsoversigt!E12 -> 3.9 | J12: =Gødningsoversigt!F12 -> 2.9 | K12: =Gødningsoversigt!G12 -> 1 | L12: =Gødningsoversigt!H12 -> 1.7 | M12: =Gødningsoversigt!I12 -> 0 | N12: =Gødningsoversigt!J12 -> 0 | P12: =Gødningsoversigt!K12 -> 65 | Q12: =Gødningsoversigt!L12 -> Flydende | R12: =Gødningsoversigt!M12 -> 0 | S12: =Gødningsoversigt!N12 -> 12 | T12: =Gødningsoversigt!O12 -> 20 | V12: =G12 -> 3 | W12: =F12 -> Sogylle
F13: =Gødningsoversigt!B13 -> Slagtesvinegylle | G13: 4 | I13: =Gødningsoversigt!E13 -> 4.5 | J13: =Gødningsoversigt!F13 -> 3.4 | K13: =Gødningsoversigt!G13 -> 1.2 | L13: =Gødningsoversigt!H13 -> 2.6 | M13: =Gødningsoversigt!I13 -> 0 | N13: =Gødningsoversigt!J13 -> 0 | P13: =Gødningsoversigt!K13 -> 65 | Q13: =Gødningsoversigt!L13 -> Flydende | R13: =Gødningsoversigt!M13 -> 0 | S13: =Gødningsoversigt!N13 -> 12 | T13: =Gødningsoversigt!O13 -> 20 | V13: 4 | W13: Slagtesvinegylle
F14: =Gødningsoversigt!B14 -> Fast gødning, høns. | G14: 5 | I14: =Gødningsoversigt!E14 -> 18.5 | J14: =Gødningsoversigt!F14 -> 6.5 | K14: =Gødningsoversigt!G14 -> 6 | L14: =Gødningsoversigt!H14 -> 9.7 | M14: =Gødningsoversigt!I14 -> 0 | N14: =Gødningsoversigt!J14 -> 0 | P14: =Gødningsoversigt!K14 -> 60 | Q14: =Gødningsoversigt!L14 -> Fast | R14: =Gødningsoversigt!M14 -> 0 | S14: =Gødningsoversigt!N14 -> 20 | T14: =Gødningsoversigt!O14 -> 30 | V14: 5 | W14: Fast gødning, høns.
F15: =Gødningsoversigt!B15 -> Dybstrøelse, slagtekyll. | G15: 6 | I15: =Gødningsoversigt!E15 -> 26.6 | J15: =Gødningsoversigt!F15 -> 8 | K15: =Gødningsoversigt!G15 -> 8.4 | L15: =Gødningsoversigt!H15 -> 17.4 | M15: =Gødningsoversigt!I15 -> 0 | N15: =Gødningsoversigt!J15 -> 0 | P15: =Gødningsoversigt!K15 -> 60 | Q15: =Gødningsoversigt!L15 -> Fast | R15: =Gødningsoversigt!M15 -> 0 | S15: =Gødningsoversigt!N15 -> 20 | T15: =Gødningsoversigt!O15 -> 30 | V15: 6 | W15: Dybstrøelse, slagtekyll.
F16: =Gødningsoversigt!B16 -> Dybstøelse, kvæg | G16: 7 | I16: =Gødningsoversigt!E16 -> 7.5 | J16: =Gødningsoversigt!F16 -> 1.5 | K16: =Gødningsoversigt!G16 -> 1.1 | L16: =Gødningsoversigt!H16 -> 8 | M16: =Gødningsoversigt!I16 -> 0 | N16: =Gødningsoversigt!J16 -> 0 | P16: =Gødningsoversigt!K16 -> 30 | Q16: =Gødningsoversigt!L16 -> Fast | R16: =Gødningsoversigt!M16 -> 0 | S16: =Gødningsoversigt!N16 -> 20 | T16: =Gødningsoversigt!O16 -> 30 | V16: 7 | W16: Dybstøelse, kvæg
F17: =Gødningsoversigt!B17 -> Minkgylle | G17: 8 | I17: =Gødningsoversigt!E17 -> 8.6 | J17: =Gødningsoversigt!F17 -> 3.8 | K17: =Gødningsoversigt!G17 -> 3.2 | L17: =Gødningsoversigt!H17 -> 1.7 | M17: =Gødningsoversigt!I17 -> 0 | N17: =Gødningsoversigt!J17 -> 0 | P17: =Gødningsoversigt!K17 -> 65 | Q17: =Gødningsoversigt!L17 -> Flydende | R17: =Gødningsoversigt!M17 -> 0 | S17: =Gødningsoversigt!N17 -> 12 | T17: =Gødningsoversigt!O17 -> 20 | V17: 8 | W17: Minkgylle
F18: =Gødningsoversigt!B18 -> Hestedybstrøelse | G18: 9 | I18: =Gødningsoversigt!E18 -> 7.7 | J18: =Gødningsoversigt!F18 -> 1.9 | K18: =Gødningsoversigt!G18 -> 1.6 | L18: =Gødningsoversigt!H18 -> 13 | M18: =Gødningsoversigt!I18 -> 0 | N18: =Gødningsoversigt!J18 -> 0 | P18: =Gødningsoversigt!K18 -> 30 | Q18: =Gødningsoversigt!L18 -> Fast | R18: =Gødningsoversigt!M18 -> 0 | S18: =Gødningsoversigt!N18 -> 20 | T18: =Gødningsoversigt!O18 -> 30 | V18: 9 | W18: Hestedybstrøelse
F19: =Gødningsoversigt!B23 -> Øgro 10-3-1 | G19: 10 | I19: =Gødningsoversigt!E23 -> 100 | J19: =Gødningsoversigt!F23 -> 0 | K19: =Gødningsoversigt!G23 -> 26 | L19: =Gødningsoversigt!H23 -> 10 | M19: =Gødningsoversigt!I23 -> 5 | N19: =Gødningsoversigt!J23 -> 2 | P19: =Gødningsoversigt!K23 -> 70 | Q19: =Gødningsoversigt!L23 -> Fast | R19: =Gødningsoversigt!M23 -> 2500 | S19: =Gødningsoversigt!N23 -> 0 | T19: =Gødningsoversigt!O23 -> 50 | V19: 10 | W19: Øgro 10-3-1
F20: =Gødningsoversigt!B24 -> Øgro 9-3-4 + 2S | G20: 11 | I20: =Gødningsoversigt!E24 -> 88 | J20: =Gødningsoversigt!F24 -> 0 | K20: =Gødningsoversigt!G24 -> 25 | L20: =Gødningsoversigt!H24 -> 36 | M20: =Gødningsoversigt!I24 -> 24 | N20: =Gødningsoversigt!J24 -> 2 | P20: =Gødningsoversigt!K24 -> 70 | Q20: =Gødningsoversigt!L24 -> Fast | R20: =Gødningsoversigt!M24 -> 3200 | S20: =Gødningsoversigt!N24 -> 0 | T20: =Gødningsoversigt!O24 -> 50 | V20: 11 | W20: Øgro 9-3-4 + 2S
F21: =Gødningsoversigt!B25 -> Øgro 15N | G21: 12 | I21: =Gødningsoversigt!E25 -> 150 | J21: =Gødningsoversigt!F25 -> 0 | K21: =Gødningsoversigt!G25 -> 3 | L21: =Gødningsoversigt!H25 -> 0.1 | M21: =Gødningsoversigt!I25 -> 22 | N21: =Gødningsoversigt!J25 -> 0.1 | P21: =Gødningsoversigt!K25 -> 70 | Q21: =Gødningsoversigt!L25 -> Fast | R21: =Gødningsoversigt!M25 -> 4620 | S21: =Gødningsoversigt!N25 -> 0 | T21: =Gødningsoversigt!O25 -> 50 | V21: 12 | W21: Øgro 15N
F22: =Gødningsoversigt!B27 -> Protamylasse | G22: 13 | I22: =Gødningsoversigt!E27 -> 15 | J22: =Gødningsoversigt!F27 -> 0 | K22: =Gødningsoversigt!G27 -> 3 | L22: =Gødningsoversigt!H27 -> 36 | M22: =Gødningsoversigt!I27 -> 6 | N22: =Gødningsoversigt!J27 -> 2.9 | P22: =Gødningsoversigt!K27 -> 70 | Q22: =Gødningsoversigt!L27 -> Flydende | R22: =Gødningsoversigt!M27 -> 210 | S22: =Gødningsoversigt!N27 -> 12 | T22: =Gødningsoversigt!O27 -> 20 | V22: 13 | W22: Protamylasse
F23: =Gødningsoversigt!B28 -> K-2 (Protamylasse) | G23: 14 | I23: =Gødningsoversigt!E28 -> 18 | J23: =Gødningsoversigt!F28 -> 0 | K23: =Gødningsoversigt!G28 -> 4 | L23: =Gødningsoversigt!H28 -> 60 | M23: =Gødningsoversigt!I28 -> 7 | N23: =Gødningsoversigt!J28 -> 3 | P23: =Gødningsoversigt!K28 -> 70 | Q23: =Gødningsoversigt!L28 -> Flydende | R23: =Gødningsoversigt!M28 -> 400 | S23: =Gødningsoversigt!N28 -> 12 | T23: =Gødningsoversigt!O28 -> 20 | V23: 14 | W23: K-2 (Protamylasse)
F24: =Gødningsoversigt!B29 -> Kartoffelfrugtsaft | G24: 15 | I24: =Gødningsoversigt!E29 -> 1.05 | J24: =Gødningsoversigt!F29 -> 0 | K24: =Gødningsoversigt!G29 -> 0.27 | L24: =Gødningsoversigt!H29 -> 3.6 | M24: =Gødningsoversigt!I29 -> 1.49 | N24: =Gødningsoversigt!J29 -> 0.16 | P24: =Gødningsoversigt!K29 -> 70 | Q24: =Gødningsoversigt!L29 -> Flydende | R24: =Gødningsoversigt!M29 -> 0 | S24: =Gødningsoversigt!N29 -> 12 | T24: =Gødningsoversigt!O29 -> 20 | V24: 15 | W24: Kartoffelfrugtsaft
F25: =Gødningsoversigt!B30 -> kartoffekondensat | G25: 16 | I25: =Gødningsoversigt!E30 -> 1.1 | J25: =Gødningsoversigt!F30 -> 0 | K25: =Gødningsoversigt!G30 -> 0.1 | L25: =Gødningsoversigt!H30 -> 1.6 | M25: =Gødningsoversigt!I30 -> 0 | N25: =Gødningsoversigt!J30 -> 0 | P25: =Gødningsoversigt!K30 -> 70 | Q25: =Gødningsoversigt!L30 -> Flydende | R25: =Gødningsoversigt!M30 -> 0 | S25: =Gødningsoversigt!N30 -> 12 | T25: =Gødningsoversigt!O30 -> 20 | V25: 16 | W25: kartoffekondensat
F26: =Gødningsoversigt!B31 -> Kaliumvinasse | G26: 17 | I26: =Gødningsoversigt!E31 -> 7 | J26: =Gødningsoversigt!F31 -> 0 | K26: =Gødningsoversigt!G31 -> 0 | L26: =Gødningsoversigt!H31 -> 210 | M26: =Gødningsoversigt!I31 -> 170 | N26: =Gødningsoversigt!J31 -> 2 | P26: =Gødningsoversigt!K31 -> 70 | Q26: =Gødningsoversigt!L31 -> Fast | R26: =Gødningsoversigt!M31 -> 1800 | S26: =Gødningsoversigt!N31 -> 20 | T26: =Gødningsoversigt!O31 -> 75 | V26: 17 | W26: Kaliumvinasse
F27: =Gødningsoversigt!B32 -> Vinasse | G27: 18 | I27: =Gødningsoversigt!E32 -> 35 | J27: =Gødningsoversigt!F32 -> 0 | K27: =Gødningsoversigt!G32 -> 0 | L27: =Gødningsoversigt!H32 -> 70 | M27: =Gødningsoversigt!I32 -> 0 | N27: =Gødningsoversigt!J32 -> 0 | P27: =Gødningsoversigt!K32 -> 70 | Q27: =Gødningsoversigt!L32 -> Flydende | R27: =Gødningsoversigt!M32 -> 600 | S27: =Gødningsoversigt!N32 -> 20 | T27: =Gødningsoversigt!O32 -> 75 | V27: 18 | W27: Vinasse
F28: =Gødningsoversigt!B33 -> Vinasse-kali | G28: 19 | I28: =Gødningsoversigt!E33 -> 8 | J28: =Gødningsoversigt!F33 -> 0 | K28: =Gødningsoversigt!G33 -> 0 | L28: =Gødningsoversigt!H33 -> 190 | M28: =Gødningsoversigt!I33 -> 70 | N28: =Gødningsoversigt!J33 -> 0 | P28: =Gødningsoversigt!K33 -> 70 | Q28: =Gødningsoversigt!L33 -> Flydende | R28: =Gødningsoversigt!M33 -> 700 | S28: =Gødningsoversigt!N33 -> 20 | T28: =Gødningsoversigt!O33 -> 75 | V28: 19 | W28: Vinasse-kali
F29: =Gødningsoversigt!B34 -> Kaliumvinasse ekstrakt K25 | G29: 20 | I29: =Gødningsoversigt!E34 -> 3 | J29: =Gødningsoversigt!F34 -> 0 | K29: =Gødningsoversigt!G34 -> 3 | L29: =Gødningsoversigt!H34 -> 250 | M29: =Gødningsoversigt!I34 -> 123 | N29: =Gødningsoversigt!J34 -> 0.2 | P29: =Gødningsoversigt!K34 -> 70 | Q29: =Gødningsoversigt!L34 -> Fast | R29: =Gødningsoversigt!M34 -> 1930 | S29: =Gødningsoversigt!N34 -> 20 | T29: =Gødningsoversigt!O34 -> 75 | V29: 20 | W29: Kaliumvinasse ekstrakt K25
F30: =Gødningsoversigt!B37 -> Binadan 4-1-3 | G30: 21 | I30: =Gødningsoversigt!E37 -> 40 | J30: =Gødningsoversigt!F37 -> 0 | K30: =Gødningsoversigt!G37 -> 8 | L30: =Gødningsoversigt!H37 -> 28 | M30: =Gødningsoversigt!I37 -> 0 | N30: =Gødningsoversigt!J37 -> 6.4 | P30: =Gødningsoversigt!K37 -> 60 | Q30: =Gødningsoversigt!L37 -> Fast | R30: =Gødningsoversigt!M37 -> 1980 | S30: =Gødningsoversigt!N37 -> 0 | T30: =Gødningsoversigt!O37 -> 50 | V30: 21 | W30: Binadan 4-1-3
F31: =Gødningsoversigt!B38 -> DLG Kombigødning NPK 4-1-3 | G31: 22 | I31: =Gødningsoversigt!E38 -> 36 | J31: =Gødningsoversigt!F38 -> 0 | K31: =Gødningsoversigt!G38 -> 10 | L31: =Gødningsoversigt!H38 -> 25 | M31: =Gødningsoversigt!I38 -> 0 | N31: =Gødningsoversigt!J38 -> 0 | P31: =Gødningsoversigt!K38 -> 60 | Q31: =Gødningsoversigt!L38 -> Fast | R31: =Gødningsoversigt!M38 -> 1750 | S31: =Gødningsoversigt!N38 -> 0 | T31: =Gødningsoversigt!O38 -> 50 | V31: 22 | W31: DLG Kombigødning NPK 4-1-3
F32: =Gødningsoversigt!B39 -> Økogødning 6-1-1 | G32: 23 | I32: =Gødningsoversigt!E39 -> 60 | J32: =Gødningsoversigt!F39 -> 0 | K32: =Gødningsoversigt!G39 -> 10 | L32: =Gødningsoversigt!H39 -> 10 | M32: =Gødningsoversigt!I39 -> 0 | N32: =Gødningsoversigt!J39 -> 0 | P32: =Gødningsoversigt!K39 -> 60 | Q32: =Gødningsoversigt!L39 -> Fast | R32: =Gødningsoversigt!M39 -> 7300 | S32: =Gødningsoversigt!N39 -> 0 | T32: =Gødningsoversigt!O39 -> 50 | V32: 23 | W32: Økogødning 6-1-1
F33: =Gødningsoversigt!B40 -> Økogødning 5-1-1 | G33: 24 | I33: =Gødningsoversigt!E40 -> 50 | J33: =Gødningsoversigt!F40 -> 0 | K33: =Gødningsoversigt!G40 -> 10 | L33: =Gødningsoversigt!H40 -> 10 | M33: =Gødningsoversigt!I40 -> 0 | N33: =Gødningsoversigt!J40 -> 0 | P33: =Gødningsoversigt!K40 -> 60 | Q33: =Gødningsoversigt!L40 -> Fast | R33: =Gødningsoversigt!M40 -> 6000 | S33: =Gødningsoversigt!N40 -> 0 | T33: =Gødningsoversigt!O40 -> 50 | V33: 24 | W33: Økogødning 5-1-1
F34: =Gødningsoversigt!B41 -> Økohønsegødning 2-1-2 | G34: 25 | I34: =Gødningsoversigt!E41 -> 20 | J34: =Gødningsoversigt!F41 -> 0 | K34: =Gødningsoversigt!G41 -> 10 | L34: =Gødningsoversigt!H41 -> 20 | M34: =Gødningsoversigt!I41 -> 0 | N34: =Gødningsoversigt!J41 -> 0 | P34: =Gødningsoversigt!K41 -> 25 | Q34: =Gødningsoversigt!L41 -> Fast | R34: =Gødningsoversigt!M41 -> 4150 | S34: =Gødningsoversigt!N41 -> 0 | T34: =Gødningsoversigt!O41 -> 50 | V34: 25 | W34: Økohønsegødning 2-1-2
F35: =Gødningsoversigt!B42 -> Økohønsegødning 3-1-2 | G35: 26 | I35: =Gødningsoversigt!E42 -> 30 | J35: =Gødningsoversigt!F42 -> 0 | K35: =Gødningsoversigt!G42 -> 10 | L35: =Gødningsoversigt!H42 -> 20 | M35: =Gødningsoversigt!I42 -> 0 | N35: =Gødningsoversigt!J42 -> 0 | P35: =Gødningsoversigt!K42 -> 60 | Q35: =Gødningsoversigt!L42 -> Fast | R35: =Gødningsoversigt!M42 -> 4600 | S35: =Gødningsoversigt!N42 -> 0 | T35: =Gødningsoversigt!O42 -> 50 | V35: 26 | W35: Økohønsegødning 3-1-2
F36: =Gødningsoversigt!B43 -> Monterra 13 | G36: 27 | I36: =Gødningsoversigt!E43 -> 130 | J36: =Gødningsoversigt!F43 -> 0 | K36: =Gødningsoversigt!G43 -> 0 | L36: =Gødningsoversigt!H43 -> 4 | M36: =Gødningsoversigt!I43 -> 0 | N36: =Gødningsoversigt!J43 -> 1 | P36: =Gødningsoversigt!K43 -> 70 | Q36: =Gødningsoversigt!L43 -> Fast | R36: =Gødningsoversigt!M43 -> 7500 | S36: =Gødningsoversigt!N43 -> 0 | T36: =Gødningsoversigt!O43 -> 50 | V36: 27 | W36: Monterra 13
F37: =Gødningsoversigt!B44 -> Monterra-Malt | G37: 28 | I37: =Gødningsoversigt!E44 -> 40 | J37: =Gødningsoversigt!F44 -> 0 | K37: =Gødningsoversigt!G44 -> 10 | L37: =Gødningsoversigt!H44 -> 50 | M37: =Gødningsoversigt!I44 -> 0 | N37: =Gødningsoversigt!J44 -> 0 | P37: =Gødningsoversigt!K44 -> 70 | Q37: =Gødningsoversigt!L44 -> Fast | R37: =Gødningsoversigt!M44 -> 3500 | S37: =Gødningsoversigt!N44 -> 0 | T37: =Gødningsoversigt!O44 -> 50 | V37: 28 | W37: Monterra-Malt
F38: =Gødningsoversigt!B45 -> PHC | G38: 29 | I38: =Gødningsoversigt!E45 -> 60 | J38: =Gødningsoversigt!F45 -> 0 | K38: =Gødningsoversigt!G45 -> 10 | L38: =Gødningsoversigt!H45 -> 30 | M38: =Gødningsoversigt!I45 -> 15 | N38: =Gødningsoversigt!J45 -> 0 | P38: =Gødningsoversigt!K45 -> 60 | Q38: =Gødningsoversigt!L45 -> Fast | R38: =Gødningsoversigt!M45 -> 13000 | S38: =Gødningsoversigt!N45 -> 0 | T38: =Gødningsoversigt!O45 -> 50 | V38: 29 | W38: PHC
F39: =Gødningsoversigt!B46 -> Tang | G39: 30 | I39: =Gødningsoversigt!E46 -> 53 | J39: =Gødningsoversigt!F46 -> 0 | K39: =Gødningsoversigt!G46 -> 3 | L39: =Gødningsoversigt!H46 -> 0 | M39: =Gødningsoversigt!I46 -> 0 | N39: =Gødningsoversigt!J46 -> 0 | P39: =Gødningsoversigt!K46 -> 10 | Q39: =Gødningsoversigt!L46 -> Fast | R39: =Gødningsoversigt!M46 -> 0 | S39: =Gødningsoversigt!N46 -> 0 | T39: =Gødningsoversigt!O46 -> 25 | V39: 30 | W39: Tang
F40: =Gødningsoversigt!B47 -> Ågrøde | G40: 31 | I40: =Gødningsoversigt!E47 -> 32 | J40: =Gødningsoversigt!F47 -> 0 | K40: =Gødningsoversigt!G47 -> 9 | L40: =Gødningsoversigt!H47 -> 0 | M40: =Gødningsoversigt!I47 -> 0 | N40: =Gødningsoversigt!J47 -> 0 | P40: =Gødningsoversigt!K47 -> 40 | Q40: =Gødningsoversigt!L47 -> Fast | R40: =Gødningsoversigt!M47 -> 0 | S40: =Gødningsoversigt!N47 -> 0 | T40: =Gødningsoversigt!O47 -> 25 | V40: 31 | W40: Ågrøde
F41: =Gødningsoversigt!B48 -> Haveparkaffald | G41: 32 | I41: =Gødningsoversigt!E48 -> 6 | J41: =Gødningsoversigt!F48 -> 0 | K41: =Gødningsoversigt!G48 -> 1.1 | L41: =Gødningsoversigt!H48 -> 4 | M41: =Gødningsoversigt!I48 -> 0.7 | N41: =Gødningsoversigt!J48 -> 1.2 | P41: =Gødningsoversigt!K48 -> 0 | Q41: =Gødningsoversigt!L48 -> Fast | R41: =Gødningsoversigt!M48 -> 0 | S41: =Gødningsoversigt!N48 -> 0 | T41: =Gødningsoversigt!O48 -> 25 | V41: 32 | W41: Haveparkaffald
F42: =Gødningsoversigt!B52 -> Patentkali | G42: 33 | I42: =Gødningsoversigt!E52 -> 0 | J42: =Gødningsoversigt!F52 -> 0 | K42: =Gødningsoversigt!G52 -> 0 | L42: =Gødningsoversigt!H52 -> 249 | M42: =Gødningsoversigt!I52 -> 170 | N42: =Gødningsoversigt!J52 -> 60 | O42: =Gødningsoversigt!K52 -> 0 | P42: =Gødningsoversigt!K52 -> 0 | Q42: =Gødningsoversigt!L52 -> Granulat | R42: =Gødningsoversigt!M52 -> 3200 | S42: =Gødningsoversigt!N52 -> 0 | T42: =Gødningsoversigt!O52 -> 40 | V42: 33 | W42: Patentkali
F43: =Gødningsoversigt!B53 -> Kiserit 15 | G43: 34 | I43: =Gødningsoversigt!E53 -> 0 | J43: =Gødningsoversigt!F53 -> 0 | K43: =Gødningsoversigt!G53 -> 0 | L43: =Gødningsoversigt!H53 -> 0 | M43: =Gødningsoversigt!I53 -> 200 | N43: =Gødningsoversigt!J53 -> 151 | O43: =Gødningsoversigt!K53 -> 0 | P43: =Gødningsoversigt!K53 -> 0 | Q43: =Gødningsoversigt!L53 -> Granulat | R43: =Gødningsoversigt!M53 -> 2200 | S43: =Gødningsoversigt!N53 -> 0 | T43: =Gødningsoversigt!O53 -> 40 | V43: 34 | W43: Kiserit 15
F44: =Gødningsoversigt!B54 -> Magnesia kainit | G44: 35 | I44: =Gødningsoversigt!E54 -> 0 | J44: =Gødningsoversigt!F54 -> 0 | K44: =Gødningsoversigt!H54 -> 91 | L44: =Gødningsoversigt!#REF! ->  | M44: =Gødningsoversigt!I54 -> 40 | N44: =Gødningsoversigt!J54 -> 30 | O44: =Gødningsoversigt!K54 -> 0 | P44: =Gødningsoversigt!K54 -> 0 | Q44: =Gødningsoversigt!L54 -> Granulat | R44: =Gødningsoversigt!M54 -> 1450 | S44: =Gødningsoversigt!N54 -> 0 | T44: =Gødningsoversigt!O54 -> 40 | V44: 35 | W44: Magnesia kainit
F45: =Gødningsoversigt!B55 -> Kaliumsulfat 41 | G45: 36 | I45: =Gødningsoversigt!E55 -> 0 | J45: =Gødningsoversigt!F55 -> 0 | K45: =Gødningsoversigt!G55 -> 0 | L45: =Gødningsoversigt!H55 -> 415 | M45: =Gødningsoversigt!I55 -> 180 | N45: =Gødningsoversigt!J55 -> 0 | O45: =Gødningsoversigt!K55 -> 0 | P45: =Gødningsoversigt!K55 -> 0 | Q45: =Gødningsoversigt!L55 -> Granulat | R45: =Gødningsoversigt!M55 -> 4550 | S45: =Gødningsoversigt!N55 -> 0 | T45: =Gødningsoversigt!O55 -> 40 | V45: 36 | W45: Kaliumsulfat 41
F46: =Gødningsoversigt!B56 -> Træaske | G46: 37 | I46: =Gødningsoversigt!E56 -> 0 | J46: =Gødningsoversigt!F56 -> 0 | K46: =Gødningsoversigt!G56 -> 9.1 | L46: =Gødningsoversigt!H56 -> 24 | M46: =Gødningsoversigt!I56 -> 0 | N46: =Gødningsoversigt!J56 -> 0 | O46: =Gødningsoversigt!K56 -> 0 | P46: =Gødningsoversigt!K56 -> 0 | Q46: =Gødningsoversigt!L56 -> 0 | R46: =Gødningsoversigt!M56 -> 0 | S46: =Gødningsoversigt!N56 -> 0 | T46: =Gødningsoversigt!O56 -> 75 | V46: 37 | W46: Træaske
F47: =Gødningsoversigt!B58 -> Naturgips | G47: 38 | I47: =Gødningsoversigt!E58 -> 0 | J47: =Gødningsoversigt!F58 -> 0 | K47: =Gødningsoversigt!G58 -> 0 | L47: =Gødningsoversigt!H58 -> 0 | M47: =Gødningsoversigt!I58 -> 200 | N47: =Gødningsoversigt!J58 -> 0 | O47: =Gødningsoversigt!K58 -> 0 | P47: =Gødningsoversigt!K58 -> 0 | Q47: =Gødningsoversigt!L58 -> Granulat | R47: =Gødningsoversigt!M58 -> 1050 | S47: =Gødningsoversigt!N58 -> 0 | T47: =Gødningsoversigt!O58 -> 40 | V47: 38 | W47: Naturgips
F48: =Gødningsoversigt!B59 -> Frit svovl | G48: 39 | I48: =Gødningsoversigt!E59 -> 0 | J48: =Gødningsoversigt!F59 -> 0 | K48: =Gødningsoversigt!G59 -> 0 | L48: =Gødningsoversigt!H59 -> 0 | M48: =Gødningsoversigt!I59 -> 900 | N48: =Gødningsoversigt!J59 -> 0 | O48: =Gødningsoversigt!K59 -> 0 | P48: =Gødningsoversigt!K59 -> 0 | Q48: =Gødningsoversigt!L59 -> Granulat | R48: =Gødningsoversigt!M59 -> 3400 | S48: =Gødningsoversigt!N59 -> 0 | T48: =Gødningsoversigt!O59 -> 40 | V48: 39 | W48: Frit svovl
F49: =Gødningsoversigt!B65 -> Egen type 1 | G49: 40 | I49: =Gødningsoversigt!E65 -> 0 | J49: =Gødningsoversigt!F65 -> 0 | K49: =Gødningsoversigt!G65 -> 0 | L49: =Gødningsoversigt!H65 -> 0 | M49: =Gødningsoversigt!I65 -> 0 | N49: =Gødningsoversigt!J65 -> 0 | O49: =Gødningsoversigt!K65 -> 0 | P49: =Gødningsoversigt!K65 -> 0 | Q49: =Gødningsoversigt!L65 -> 0 | R49: =Gødningsoversigt!M65 -> 0 | S49: =Gødningsoversigt!N65 -> 0 | T49: =Gødningsoversigt!O65 -> 0 | V49: 40 | W49: Egen type 1
F50: =Gødningsoversigt!B66 -> Egen type 2 | G50: 41 | I50: =Gødningsoversigt!E66 -> 0 | J50: =Gødningsoversigt!F66 -> 0 | K50: =Gødningsoversigt!G66 -> 0 | L50: =Gødningsoversigt!H66 -> 0 | M50: =Gødningsoversigt!I66 -> 0 | N50: =Gødningsoversigt!J66 -> 0 | O50: =Gødningsoversigt!K66 -> 0 | P50: =Gødningsoversigt!K66 -> 0 | Q50: =Gødningsoversigt!L66 -> 0 | R50: =Gødningsoversigt!M66 -> 0 | S50: =Gødningsoversigt!N66 -> 0 | T50: =Gødningsoversigt!O66 -> 0 | V50: 41 | W50: Egen type 2
F51: =Gødningsoversigt!B67 -> Egen type 3 | G51: 42 | I51: =Gødningsoversigt!E67 -> 0 | J51: =Gødningsoversigt!F67 -> 0 | K51: =Gødningsoversigt!G67 -> 0 | L51: =Gødningsoversigt!H67 -> 0 | M51: =Gødningsoversigt!I67 -> 0 | N51: =Gødningsoversigt!J67 -> 0 | O51: =Gødningsoversigt!K67 -> 0 | P51: =Gødningsoversigt!K67 -> 0 | Q51: =Gødningsoversigt!L67 -> 0 | R51: =Gødningsoversigt!M67 -> 0 | S51: =Gødningsoversigt!N67 -> 0 | T51: =Gødningsoversigt!O67 -> 0 | V51: 42 | W51: Egen type 3
F52: =Gødningsoversigt!B68 -> Egen type 4 | G52: 43 | I52: =Gødningsoversigt!E68 -> 0 | J52: =Gødningsoversigt!F68 -> 0 | K52: =Gødningsoversigt!G68 -> 0 | L52: =Gødningsoversigt!H68 -> 0 | M52: =Gødningsoversigt!I68 -> 0 | N52: =Gødningsoversigt!J68 -> 0 | O52: =Gødningsoversigt!K68 -> 0 | P52: =Gødningsoversigt!K68 -> 0 | Q52: =Gødningsoversigt!L68 -> 0 | R52: =Gødningsoversigt!M68 -> 0 | S52: =Gødningsoversigt!N68 -> 0 | T52: =Gødningsoversigt!O68 -> 0 | V52: 43 | W52: Egen type 4
F56: Transportform
F57: 1 | G57: 2 | H57: 3 | I57: 4 | J57: 5
F59: Traktor | G59: Traktor
F60: Lastbil | G60: Lastbil
F64: Transportomkostninger
I65: Time- | J65: Opstart, | K65: Læsse/losse | L65: Hastighed | M65: Læsstr.,
I66: pris | J66: kr./time | K66: min/læs | L66: km/t | M66: ton/læs
H67: 1 | I67: 2 | J67: 3 | K67: 4 | L67: 5 | M67: 6 | N67: 7 | O67: 8 | P67: 9 | Q67: 10 | R67: 11 | S67: 12 | T67: 13 | U67: 14
F68: Lastbil | G68: Fast | H68: =CONCATENATE(F68,G68) -> LastbilFast | I68: =Forudsætninger!D16 -> 700 | J68: =Forudsætninger!E16 -> 100 | K68: =Forudsætninger!F16 -> 10 | L68: =Forudsætninger!G16 -> 70 | M68: =Forudsætninger!H16 -> 20
F69: Lastbil | G69: Flydende | H69: LastbilFlydende | I69: =Forudsætninger!D17 -> 700 | J69: =Forudsætninger!E17 -> 100 | K69: =Forudsætninger!F17 -> 4 | L69: =Forudsætninger!G17 -> 70 | M69: =Forudsætninger!H17 -> 30
F70: Lastbil | G70: Granulat | H70: LastbilGranulat | I70: =Forudsætninger!D18 -> 700 | J70: =Forudsætninger!E18 -> 100 | K70: =Forudsætninger!F18 -> 20 | L70: =Forudsætninger!G18 -> 70 | M70: =Forudsætninger!H18 -> 20
F71: Traktor | G71: Fast | H71: TraktorFast | I71: =Forudsætninger!D19 -> 900 | J71: =Forudsætninger!E19 -> 0 | K71: =Forudsætninger!F19 -> 10 | L71: =Forudsætninger!G19 -> 20 | M71: =Forudsætninger!H19 -> 15
F72: Traktor | G72: Flydende | H72: TraktorFlydende | I72: =Forudsætninger!D20 -> 900 | J72: =Forudsætninger!E20 -> 0 | K72: =Forudsætninger!F20 -> 3 | L72: =Forudsætninger!G20 -> 20 | M72: =Forudsætninger!H20 -> 25
F73: Traktor | G73: Granulat | H73: TraktorGranulat | I73: =Forudsætninger!D21 -> 900 | J73: =Forudsætninger!E21 -> 0 | K73: =Forudsætninger!F21 -> 20 | L73: =Forudsætninger!G21 -> 20 | M73: =Forudsætninger!H21 -> 20
F76: Tillæg for nedfældning
F77: Tillæg | G77: =Forudsætninger!C26 -> 5 | H77: kr. pr. ton
F82: Dokumentation:
F83: N-udnyttelses% | G83: Husdyrgødning følger normerne
G84: Øvrige er ekspertskøn

Sheet Forudsætninger
B2: Transport, nedfældning og gødningsudnyttelse
B4: Næringsstofpriser | O4: SEGES-fastsatte defaultværdier
C5: Pris, kr. pr. kg
B6: Udnyttet kvælstof | C6: 8 | O6: 8
B7: Fosfor | C7: 10 | O7: 10
B8: Kalium | C8: 6 | O8: 6
B9: Svovl | C9: 2 | O9: 2
B10: Magnesium | C10: 4 | O10: 4
B13: Forudsætninger for transportomkostninger
D14: Time- | E14: Startpris, | F14: Læsse/lodse | G14: Hastighed | H14: Læsstørrelse
B15: Transportform | C15: Produktform | D15: pris | E15: kr. | F15: minutter/læs | G15: km/t | H15: ton/læs
B16: Lastbil | C16: Fast | D16: 700 | E16: 100 | F16: 10 | G16: 70 | H16: 20 | O16: 700 | P16: 100 | Q16: 10 | R16: 70 | S16: 20
C17: Flydende | D17: 700 | E17: 100 | F17: 4 | G17: 70 | H17: 30 | O17: 700 | P17: 100 | Q17: 4 | R17: 70 | S17: 30
C18: Granulat | D18: 700 | E18: 100 | F18: 20 | G18: 70 | H18: 20 | O18: 700 | P18: 100 | Q18: 20 | R18: 70 | S18: 20
B19: Traktor | C19: Fast | D19: 900 | E19: 0 | F19: 10 | G19: 20 | H19: 15 | O19: 900 | P19: 0 | Q19: 10 | R19: 20 | S19: 15
C20: Flydende | D20: 900 | E20: 0 | F20: 3 | G20: 20 | H20: 25 | O20: 900 | P20: 0 | Q20: 3 | R20: 20 | S20: 25
C21: Granulat | D21: 900 | E21: 0 | F21: 20 | G21: 20 | H21: 20 | O21: 900 | P21: 0 | Q21: 20 | R21: 20 | S21: 20
B25: Tillæg for nedfældning
B26: Tillæg | C26: 5 | D26: kr. pr. ton | O26: 5
B30: Udnyttelse af P og K i procent af total
B31: Udnyttelse af fosfor | C31: 100 | O31: 100
B32: Udnyttelse af kalium | C32: 100 | O32: 100
B33: Udnyttelse af svovl | C33: 100 | O33: 100
B34: Magnesium | C34: 100 | O34: 100
E36: Videre til

Sheet Postnummer
B4: 2000 | C4: Frederiksberg
B5: 2100 | C5: København Ø
B6: 2200 | C6: København N
B7: 2300 | C7: København S
B8: 2400 | C8: København NV
B9: 2450 | C9: København SV
B10: 2500 | C10: Valby
B11: 2600 | C11: Glostrup
B12: 2605 | C12: Brøndby
B13: 2610 | C13: Rødovre
B14: 2620 | C14: Albertslund
B15: 2625 | C15: Vallensbæk
B16: 2630 | C16: Taastrup
B17: 2635 | C17: Ishøj
B18: 2640 | C18: Hedehusene
B19: 2650 | C19: Hvidovre
B20: 2660 | C20: Brøndby Strand
B21: 2665 | C21: Vallensbæk Strand
B22: 2670 | C22: Greve
B23: 2680 | C23: Solrød
B24: 2690 | C24: Karlslunde
B25: 2700 | C25: Brønshøj
B26: 2720 | C26: Vanløse
B27: 2730 | C27: Herlev
B28: 2740 | C28: Skovlunde
B29: 2750 | C29: Ballerup
B30: 2760 | C30: Måløv
B31: 2765 | C31: Smørum
B32: 2770 | C32: Kastrup
B33: 2791 | C33: Dragør
B34: 2800 | C34: Kongens Lyngby
B35: 2820 | C35: Gentofte
B36: 2830 | C36: Virum
B37: 2840 | C37: Holte
B38: 2850 | C38: Nærum
B39: 2860 | C39: Søborg
B40: 2870 | C40: Dyssegård
B41: 2880 | C41: Bagsværd
B42: 2900 | C42: Hellerup
B43: 2920 | C43: Charlottenlund
B44: 2930 | C44: Klampenborg
B45: 2942 | C45: Skodsborg
B46: 2950 | C46: Vedbæk
B47: 2960 | C47: Rungsted Kyst
B48: 2970 | C48: Hørsholm
B49: 2980 | C49: Kokkedal
B50: 2990 | C50: Nivå
B51: 3000 | C51: Helsingør
B52: 3050 | C52: Humlebæk
B53: 3050 | C53: Humlebæk
B54: 3060 | C54: Espergærde
B55: 3070 | C55: Snekkersten
B56: 3080 | C56: Tikøb
B57: 3100 | C57: Hornbæk
B58: 3120 | C58: Dronningmølle
B59: 3140 | C59: Ålsgårde
B60: 3150 | C60: Hellebæk
B61: 3200 | C61: Helsinge
B62: 3210 | C62: Vejby
B63: 3220 | C63: Tisvildeleje
B64: 3230 | C64: Græsted
B65: 3250 | C65: Gilleleje
B66: 3300 | C66: Frederiksværk
B67: 3310 | C67: Ølsted
B68: 3320 | C68: Skævinge
B69: 3330 | C69: Gørløse
B70: 3360 | C70: Liseleje
B71: 3370 | C71: Melby
B72: 3390 | C72: Hundested
B73: 3400 | C73: Hillerød
B74: 3450 | C74: Allerød
B75: 3460 | C75: Birkerød
B76: 3480 | C76: Fredensborg
B77: 3490 | C77: Kvistgård
B78: 3500 | C78: Værløse
B79: 3520 | C79: Farum
B80: 3540 | C80: Lynge
B81: 3550 | C81: Slangerup
B82: 3600 | C82: Frederikssund
B83: 3630 | C83: Jægerspris
B84: 3650 | C84: Ølstykke
B85: 3660 | C85: Stenløse
B86: 3670 | C86: Veksø Sjælland
B87: 3700 | C87: Rønne
B88: 3720 | C88: Aakirkeby
B89: 3730 | C89: Neksø
B90: 3740 | C90: Svaneke
B91: 3751 | C91: Østermarie
B92: 3760 | C92: Gudhjem
B93: 3770 | C93: Allinge
B94: 3782 | C94: Klemensker
B95: 3790 | C95: Hasle
B96: 4000 | C96: Roskilde
B97: 4030 | C97: Tune
B98: 4040 | C98: Jyllinge
B99: 4050 | C99: Skibby
B100: 4060 | C100: Kirke Såby
B101: 4070 | C101: Kirke Hyllinge
B102: 4100 | C102: Ringsted
B103: 4130 | C103: Viby Sjælland
B104: 4140 | C104: Borup
B105: 4160 | C105: Herlufmagle
B106: 4171 | C106: Glumsø
B107: 4173 | C107: Fjenneslev
B108: 4174 | C108: Jystrup Midtsj
B109: 4180 | C109: Sorø
B110: 4190 | C110: Munke Bjergby
B111: 4200 | C111: Slagelse
B112: 4220 | C112: Korsør
B113: 4230 | C113: Skælskør
B114: 4241 | C114: Vemmelev
B115: 4242 | C115: Boeslunde
B116: 4243 | C116: Rude
B117: 4250 | C117: Fuglebjerg
B118: 4261 | C118: Dalmose
B119: 4262 | C119: Sandved
B120: 4270 | C120: Høng
B121: 4281 | C121: Gørlev
B122: 4291 | C122: Ruds Vedby
B123: 4293 | C123: Dianalund
B124: 4295 | C124: Stenlille
B125: 4296 | C125: Nyrup
B126: 4300 | C126: Holbæk
B127: 4320 | C127: Lejre
B128: 4330 | C128: Hvalsø
B129: 4340 | C129: Tølløse
B130: 4340 | C130: Tølløse
B131: 4350 | C131: Ugerløse
B132: 4360 | C132: Kirke Eskilstrup
B133: 4370 | C133: Store Merløse
B134: 4390 | C134: Vipperød
B135: 4400 | C135: Kalundborg
B136: 4420 | C136: Regstrup
B137: 4440 | C137: Mørkøv
B138: 4450 | C138: Jyderup
B139: 4460 | C139: Snertinge
B140: 4470 | C140: Svebølle
B141: 4480 | C141: Store Fuglede
B142: 4490 | C142: Jerslev Sjælland
B143: 4500 | C143: Nykøbing Sj
B144: 4520 | C144: Svinninge
B145: 4532 | C145: Gislinge
B146: 4534 | C146: Hørve
B147: 4540 | C147: Fårevejle
B148: 4550 | C148: Asnæs
B149: 4560 | C149: Vig
B150: 4571 | C150: Grevinge
B151: 4572 | C151: Nørre Asmindrup
B152: 4573 | C152: Højby
B153: 4581 | C153: Rørvig
B154: 4583 | C154: Sjællands Odde
B155: 4591 | C155: Føllenslev
B156: 4592 | C156: Sejerø
B157: 4593 | C157: Eskebjerg
B158: 4600 | C158: Køge
B159: 4621 | C159: Gadstrup
B160: 4622 | C160: Havdrup
B161: 4623 | C161: Lille Skensved
B162: 4632 | C162: Bjæverskov
B163: 4640 | C163: Faxe
B164: 4652 | C164: Hårlev
B165: 4653 | C165: Karise
B166: 4654 | C166: Faxe Ladeplads
B167: 4660 | C167: Store Heddinge
B168: 4671 | C168: Strøby
B169: 4672 | C169: Klippinge
B170: 4673 | C170: Rødvig Stevns
B171: 4681 | C171: Herfølge
B172: 4682 | C172: Tureby
B173: 4683 | C173: Rønnede
B174: 4684 | C174: Holmegaard
B175: 4690 | C175: Haslev
B176: 4700 | C176: Næstved
B177: 4720 | C177: Præstø
B178: 4733 | C178: Tappernøje
B179: 4735 | C179: Mern
B180: 4736 | C180: Karrebæksminde
B181: 4750 | C181: Lundby
B182: 4760 | C182: Vordingborg
B183: 4771 | C183: Kalvehave
B184: 4772 | C184: Langebæk
B185: 4773 | C185: Stensved
B186: 4780 | C186: Stege
B187: 4791 | C187: Borre
B188: 4792 | C188: Askeby
B189: 4793 | C189: Bogø By
B190: 4800 | C190: Nykøbing F
B191: 4840 | C191: Nørre Alslev
B192: 4850 | C192: Stubbekøbing
B193: 4862 | C193: Guldborg
B194: 4863 | C194: Eskilstrup
B195: 4871 | C195: Horbelev
B196: 4872 | C196: Idestrup
B197: 4873 | C197: Væggerløse
B198: 4874 | C198: Gedser
B199: 4880 | C199: Nysted
B200: 4891 | C200: Toreby L
B201: 4892 | C201: Kettinge
B202: 4894 | C202: Øster Ulslev
B203: 4895 | C203: Errindlev
... 394 more rows

Sheet Services
B2: Faktaark og artikler
B3: Vær opmærksom på at du forlader denne side når du aktivere de indsatte links.
B5: K | C5: Faktaark om kalium
B6: P | C6: Faktaark om fosfor
B7: S | C7: Gødninger med svovl til økologiske afgrøder
B10: Omregning fra molekyler til atomer
B12: Udlandet angiver ofte procent indhold af næringsstoffer i gødninger som oxider.
B13: Du kan omregne her:
B15: Fra | C15: Pct.(indsæt) | D15: Til | E15: Pct.
B16: K2O | C16: 0 | D16: K | E16: =+C16*0.83 -> 0
B17: P2O5 | C17: 0 | D17: P | E17: =+C17*0.44 -> 0
B18: MgO | C18: 0 | D18: Mg | E18: =+C18*0.6 -> 0
B19: SO3 | C19: 0 | D19: S | E19: =+C19*0.4 -> 0
B22: Konsulenterklæring
B23: Flere af de tilladte gødninger forudsætter at der er udarbejdet en konsulenterklæring
B24: Skemaet der skal anvendes findes på NaturErhvervs hjemmeside for skemaer og blanketter. Se under fane Planteavl:
B25: http://naturerhverv.dk/tvaergaaende/oekologi/jordbrugsbedrifter/skemaer-og-blanketter/

Sheet XRumvægt
B2: Rumvægt for græsensilage
B27: Kilde: Håndbog i kvæghold

Sheet Øgro 10-3-1
B2: Øgro 10-3-1
B3: Oprindelse og form | C3: Øgro 10-3-1 (tidligere Biogrow) er et restprodukt af animalsk oprindelse i pilleform. Det består af dansk kød- og benmel, eksklusiv "drøv tryggere". Har et højt indhold og tilgængelighed af kvælstof og fosfor. Der er påvist god gødningseffekt i vårsæd, men data er dog begrænset i DK. Produktet har gennem mange år været anvendt og testet i Sverige.
B4: Indhold | C4: Total-kvælstof: 10 % Total-fosfor: 2,6 % Kalium: 1,0 % Magnesium: 0,2% Svovl: 0,5%
B5: Udnyttelse, faglig vurdering | C5: Gødningsprodukt, hvor kvælstof kan forventes udnyttet med 50-80%, og øvrige næringsstoffer med 100% når der regnes over en længere årrække.
B6: Pris | C6: 2.350-2.890 kr./ton afhængig af ordre størrelse, lokalitet og købstidspunkt.
B7: Radius for levering | C7: Hele landet.
B8: Håndtering | C8: Bør nedbringes for at opnå bedst nyttevirkning af kvælstof og undgå at evt. fugle spiser pillerne. Muligvis et mindre problem med fugle i opvoksede afgrøder.
B9: Bilag 1 i Vejledning om økologisk jordbrugsproduktion | C9: Kategori: Produkter eller biprodukter af animalsk oprindelse, herunder kødmel og benmel. Logbog for planteavl: Noteres som gødning Dokumentation af behov: Intet krav hvis alt ikke-økologisk gødning tilsammen giver 50 kg udnyttet N eller mindre pr. ha.
B10: Gødningsregnskab for kvælstof | C10: Generelt ikke afklaret for organiske gødninger, men det forventes at udnyttelsesprocenten vil blive fastsat forholdsmæssigt ud fra indgangsmaterialerne primo 2017.
B11: Gødningsregnskab for fosfor | C11: Der kommer en ny regulering for fosfor pr. 1. august 2017.
B12: Andre regler | C12: Reguleret efter biproduktforordningen og OGJ bekendtgørelse (Organiske Gødningsstoffer og Jordforbedringsmidler): Således at anvendelse af Øgro på bedrifter med produktionsdyr skal registre dette under punkt "OGJ" i GHI -landbrugsindbretning parallelt med gødningsindberetning. Må ikke spredes på afgrøder senere end 21 dage før høst, og senest 21 dage før dyr får adgang til arealet.
B13: Leverandører | C13: DAKA
B14: OBS punkter | C14: Det er ifølge Mejeriforeningens retningslinjer på nuværende tidspunkt ikke tilladt at anvende kødbenmel eller produkter produceret med input af kødbenmel når man er mælkeproducent. I 2017 er produktet tilsæt 5% synlig kalk jf. krav fra fødevarestyrelsen. Vær opmærksom på at ikke alle grovvarervirksomheder, herunder DLG, vil modtage høst af afgrøder der er gødet med kød- og benmel.
B15: Kilde | C15: http://www.daka.dk/daka/ogro/oegro-10-3-1/?L=10
B16: Sidst opdateret | C16: Januar 2017
J24: ½

Sheet Øgro 9-3-4 +2S
B2: Øgro 9-3-4 + 2S
B3: Oprindelse og form | C3: Øgro 9-3-4 + 2S er et restprodukt af animalsk og vegetabilsk oprindelse i 4 mm piller. Det består af dansk kød- og benmel, eksklusiv "drøv tryggere", og tilsat vinasse. Har et højt indhold af kvælstof, fosfor, kalium og svovl. Produktet har gennem mange år været anvendt og testet i Sverige.
B4: Indhold | C4: Total-kvælstof: 8,8 % Total-fosfor: 2,5 % Kalium: 3,6 % Magnesium: 0,2% Svovl: 2,4%
B5: Udnyttelse, faglig vurdering | C5: Gødningsprodukt, hvor kvælstof kan forventes udnyttet med 50-80%, og øvrige næringsstoffer med 100%, når der regnes over en længere årrække.
B6: Pris | C6: 3.000-3.650 kr./ton afhængig af ordre størrelse, lokalitet og købs tidspunkt.
B7: Radius for levering | C7: Hele landet efter nærmere aftale
B8: Håndtering | C8: Bør nedbringes for at opnå bedst nyttevirkning af kvælstof og undgå at evt. fugle spiser pillerne. Muligvis et mindre problem med fugle i opvoksede afgrøder.
B9: Bilag 1 i Vejledning om økologisk jordbrugsproduktion | C9: Kategori: Produkter eller biprodukter af animalsk oprindelse, herunder kødmel og benmel. Logbog for planteavl: Noteres som gødning Dokumentation af behov: Intet krav hvis alt ikke-økologisk gødning tilsammen giver 50 kg udnyttet N eller mindre pr. ha.
B10: Gødningsregnskab for kvælstof | C10: Generelt ikke afklaret for organiske gødninger, men det forventes at udnyttelsesprocenten vil blive fastsat forholdsmæssigt ud fra indgangsmaterialerne primo 2017.
B11: Gødningsregnskab for fosfor | C11: Der kommer en ny regulering for fosfor pr. 1. august 2017.
B12: Andre regler | C12: Reguleret efter biproduktforordningen og OGJ bekendtgørelse (Organiske Gødningsstoffer og Jordforbedringsmidler): Således at anvendelse af Øgro på bedrifter med produktionsdyr skal registre dette under punkt "OGJ" i GHI -landbrugsindbretning parallelt med gødningsindberetning. Må ikke spredes på afgrøder senere end 21 dage før høst, og senest 21 dage før dyr får adgang til arealet.
B13: Leverandører | C13: DAKA
B14: OBS punkter | C14: Det er ifølge Mejeriforeningens retningslinjer på nuværende tidspunkt ikke tilladt at anvende kødbenmel eller produkter produceret med input af kødbenmel når man er mælkeproducent. I 2017 er produktet tilsæt 5% synlig kalk jf. krav fra fødevarestyrelsen. Vær opmærksom på at ikke alle grovvarervirksomheder, herunder DLG, vil modtage høst af afgrøder der er gødet med kød- og benmel.
B15: Kilde | C15: http://www.daka.dk/daka/ogro/oegro-9-3-4-2s/?L=10
B16: Sidst opdateret | C16: Januar 2017
J23: ½

Sheet Øgro N15
B2: Øgro N15
B3: Oprindelse og form | C3: Øgro N15 består af 3 mm piller fremstillet af hydrolyserede svinebørster som er rige på let omsættelig kvælstof. Leveres i bigbags a 750 kg eller poser a 20 kg.
B4: Indhold | C4: Total-kvælstof: 15,0 % Total-fosfor: 0,3 % Kalium: 0,01% Magnesium: 0,01% Svovl: 2,2%
B5: Udnyttelse, faglig vurdering | C5: Gødningsprodukt, hvor kvælstof forventes udnyttet med 50-80%. Det mangler praktiske forsøg.
B6: Pris | C6: I bigbag a 750 kg; 4.425 - 4.910 kr/ton afhængig af ordre størrelse, lokalitet og købstidspunkt.
B7: Radius for levering | C7: Hele landet efter nærmere aftale
B8: Håndtering | C8: Bør nedbringes for at opnå bedst nyttevirkning af kvælstof og undgå at evt. fugle spiser pillerne. Muligvis et mindre problem med fugle i opvoksede afgrøder.
B9: Bilag 1 i Vejledning om økologisk jordbrugsproduktion | C9: Kategori: Produkter eller biprodukter af animalsk oprindelse, herunder hår og børster. Logbog for planteavl: Noteres som gødning Dokumentation af behov: Intet krav hvis alt ikke-økologisk gødning tilsammen giver 50 kg udnyttet N eller mindre pr. ha.
B10: Gødningsregnskab for kvælstof | C10: Generelt ikke afklaret for organiske gødninger, men det forventes at udnyttelsesprocenten vil blive fastsat forholdsmæssigt ud fra indgangsmaterialerne primo 2017.
B11: Gødningsregnskab for fosfor | C11: Der kommer en ny regulering for fosfor pr. 1. august 2017.
B12: Andre regler | C12: Reguleret efter biproduktforordningen og OGJ bekendtgørelse (Organiske Gødningsstoffer og Jordforbedringsmidler): Således at anvendelse af Øgro på bedrifter med produktionsdyr skal registre dette under punkt "OGJ" i GHI -landbrugsindbretning parallelt med gødningsindberetning. Må ikke spredes på afgrøder senere end 21 dage før høst, og senest 21 dage før dyr får adgang til arealet.
B13: Leverandører | C13: DAKA
B14: OBS punkter | C14: Der findes ikke branche-bestemte begrænsninger på brugen af denne gødning.
B15: Kilde | C15: http://www.daka.dk/daka/ogro/oegro-n15/?L=10
B16: Sidst opdateret | C16: Januar 2017
J23: ½

Sheet Øgro granulat 9-3-4+2S
B2: Øgro granulat 9-3-4 + 2S
B3: Oprindelse og form | C3: Øgro 9-3-4 + 2S er et restprodukt af animalsk og vegetabilsk oprindelse. Produktet er hårdt presset og efterfølgende knust til ca. 1 mm granulat. Det består af dansk kød- og benmel, eksklusiv "drøv tryggere", og tilsat vinasse. Har et højt indhold af kvælstof, fosfor, kalium og svovl. Produktet har gennem mange år været anvendt og testet i Sverige.
B4: Indhold | C4: Total-kvælstof: 8,8 % Total-fosfor: 2,5 % Kalium: 3,6 % Magnesium: 0,2% Svovl: 2,4%
B5: Udnyttelse, faglig vurdering | C5: Gødningsprodukt, hvor kvælstof kan forventes udnyttet med 50-80%, og øvrige næringsstoffer med 100%, når der regnes over en længere årrække.
B6: Pris | C6: 3.540-3.990 kr./ton afhængig af ordre størrelse, lokalitet og købs tidspunkt.
B7: Radius for levering | C7: Hele landet efter nærmere aftale
B8: Håndtering | C8: På græsarealer, hvor nedfældning/tildækning af gødningen ikke er en mulighed, kan man med fordel anvende 9-3-4-2S i en granuleret form, da den lettere falder ned i bunden af afgrøden.
B9: Bilag 1 i Vejledning om økologisk jordbrugsproduktion | C9: Kategori: Produkter eller biprodukter af animalsk oprindelse, herunder kødmel og benmel. Logbog for planteavl: Noteres som gødning Dokumentation af behov: Intet krav hvis alt ikke-økologisk gødning tilsammen giver 50 kg udnyttet N eller mindre pr. ha.
B10: Gødningsregnskab for kvælstof | C10: Generelt ikke afklaret for organiske gødninger, men det forventes at udnyttelsesprocenten vil blive fastsat forholdsmæssigt ud fra indgangsmaterialerne primo 2017.
B11: Gødningsregnskab for fosfor | C11: Der kommer en ny regulering for fosfor pr. 1. august 2017.
B12: Andre regler | C12: Reguleret efter biproduktforordningen og OGJ bekendtgørelse (Organiske Gødningsstoffer og Jordforbedringsmidler): Således at anvendelse af Øgro på bedrifter med produktionsdyr skal registre dette under punkt "OGJ" i GHI -landbrugsindbretning parallelt med gødningsindberetning. Må ikke spredes på afgrøder senere end 21 dage før høst, og senest 21 dage før dyr får adgang til arealet.
B13: Leverandører | C13: DAKA
B14: OBS punkter | C14: Det er ifølge Mejeriforeningens retningslinjer på nuværende tidspunkt ikke tilladt at anvende kødbenmel eller produkter produceret med input af kødbenmel når man er mælkeproducent. I 2017 er produktet tilsæt 5% synlig kalk jf. krav fra fødevarestyrelsen. Vær opmærksom på at ikke alle grovvarervirksomheder, herunder DLG, vil modtage høst af afgrøder der er gødet med kød- og benmel.
B15: Kilde | C15: http://www.daka.dk/daka/ogro/oegro-granulat/?L=10
B16: Sidst opdateret | C16: Januar 2017
J23: ½

Sheet Protamylasse
B2: Protamylasse
B3: Oprindelse og form | C3: Kartoffelprotamylasse er et inddampet biprodukt fra fremstillingen af kartoffelmel, hvor kartoffelfrugtvand med omkring 3 % tørstof, opkoncentreres ca. 10 gange. Efter opkoncentrering er protamylassen stadig i flydende og pumpebar form. Gødningen er klorfattig.
B4: Indhold | C4: Tørstofindhold: 24-38% Total-kvælstof: 12-18 kg/ton Total-fosfor: 2-4 kg/ton Kalium: 34-40 kg/ton Magnesium: 1,7-4 kg/ton Svovl: 4-9 kg/ton
B5: Udnyttelse, faglig vurdering | C5: 70 % af kvælstof, 100 % af fosfor, 100 % af kalium
B6: Pris | C6: Ca. 200-220 kr./ton ved afhentning på fabrik. Kontakt producent for nærmere aftale.
B7: Radius for levering | C7: Primært Jylland
B8: Håndtering | C8: Protamylasse er velegnet til biogasanlæg og som koncentreret flydende gødning, udbragt direkte på marken, eller som opblanding i svinegylle for at opnå en bedre gødningsmæssig sammensætning. Ved iblanding og udbringning er det vigtigt med omrøring.
B9: Bilag 1 i Vejledning om økologisk jordbrugs-produktion | C9: Kategori: Produkter eller biprodukter af vegetabilsk oprindelse til gødskning. Logbog for planteavl: Noteres som gødning Dokumentation af behov: Noter hvorfor produktet er nødvendigt på din bedrift.
B10: Gødningsregnskab for kvælstof | C10: Lovpligtig N-udnyttelse: 50%
B11: Gødningsregnskab for fosfor | C11: Der kommer en ny regulering for fosfor pr. 1. august 2017.
B12: Andre regler | C12: Protamylasse fra AKK og AKS er for nylig løftet ud af slambekendtgørelsen og reguleres nu alene under gødningsbekendtgørelsen. Det kan derfor anvendes uden forudgående tilladelse fra kommunen. Reglerne for udbringning er pt. uafklarede men det vurderes at lukkeperioden (15. november til 1. februar) for husdyr- og handelsgødning gælder, når denne gødning alene er reguleret under gødningsbekendtgørelsen.
B13: Leverandører | C13: Protamylasse forhandles af Kartoffelmelsfabrikkerne i Sønderjylland (AKS) og Karup (AKK).
B14: OBS punkter | C14: Produktionen af protamylasse varierer fra år til år, i såvel mængder som næringsstofindhold. Mængderne er begrænsede og andelshavere og gamle kunder har ofte første prioritet, men der er dog muligheder også for nye kunder. Velegnet til opblanding i gylle.
B15: Kilde | C15: AKS: http://www.a-k-s.dk/biprodukter/protamylasse-2017/
C16: AKK: http://www.kkmel.dk/biprodukter/protamylasse.aspx
B17: Sidst opdateret | C17: Januar 2017

Sheet K-2
B2: K-2
B3: Oprindelse og form | C3: K-2 (der er en protamylasse-gødning) er et inddampet biprodukt fra fremstillingen af kartoffelmel, hvor kartoffelfrugtvand med 4 % tørstof, opkoncentreres ca. 10 gange. Efter opkoncentrering er K-2 stadig i flydende og pumpebar form. Gødningen er klorfattig.
B4: Indhold | C4: Tørstofindhold: ca. 40 % Total-kvælstof: 18 kg/ton Total-fosfor: 4 kg/ton Kalium: 60 kg/ton Magnesium: 3 kg/ton Svovl: 7 kg/ton
B5: Udnyttelse, faglig vurdering | C5: 70 % af kvælstof, øvrige næringsstoffer kan sættes til 100 % udnyttelse
B6: Pris | C6: 400 kr./ton udbragt på marken og 345 kr./ton leveret til beholder.
B7: Radius for levering | C7: Nordjylland (Himmerland og Vendsyssel)
B8: Håndtering | C8: Protamylasse er velegnet til biogasanlæg og som koncentreret flydende gødning, udbragt direkte på marken, eller som opblanding i svinegylle for at opnå en bedre gødningsmæssig sammensætning. Ved modtagelse til gyllebeholder skal man være opnærksom på at K-2 kan skumme når det blandes med gylle. Der skal derfor være en vis volumen til rådighed i beholderen. Udbragt direkte med gyllevogn fra Langholdt er den laveste dosering 1,5 ton/ha. Ved iblanding og udbringning er det vigtigt med omrøring
B9: Bilag 1 i Vejledning om økologisk jordbrugs-produktion | C9: Kategori: Produkter eller biprodukter af vegetabilsk oprindelse til gødskning. Logbog for planteavl: Noteres som gødning Dokumentation af behov: Noter hvorfor produktet er nødvendigt på din bedrift.
B10: Gødningsregnskab for kvælstof | C10: Lovpligtig N-udnyttelse: 50%
B11: Gødningsregnskab for fosfor | C11: Der kommer en ny regulering for fosfor pr. 1. august 2017.
B12: Andre regler | C12: K-2 er reguleret efter Slambekendtgørelsen. Det betyder at udbringningen skal anmeldelse til kommunen, hvis man modtager mere end 10 tons tørstof pr. år, og der max må udbringes 90 kg fosfor over 3 år og max 170 kg total-kvælstof pr. ha pr. år på markniveau (§22). Hvis gødningen blandes i gylle med op til 25 procent, kan det dog udbringes efter reglerne i Husdyrgødningsbekendtgørelsen uden begrænsning i fosformængden. Husdyrgødningsbekendtgørelsen: I perioden fra 1. sept. til 1. februar må der ikke udbringes protamylasse. Dog må der fra høst til 1. oktober tilføres max. 50 kg total-kvælstof pr. ha til overvintrende fodergræs og nyetableret vinterraps. AKV arbejder på at få K-2 løftet ud af Slambekendtgørelsen og over som en handelsgødning.
B13: Leverandører | C13: K-2 forhandles af Andelskartoffelmelsfabrikken Vendsyssel (AKV) i Langholt. Spørgsmål samt bestilling af K-2 kan ske ved henvendelse til: Agrokonsulent Svend Bøgh Larsen Direkte: 96389433, Mobil: 40516234 E-mail sbl@akv-langholt.dk
B14: OBS punkter | C14: Produktionen af K-2 varierer fra år til år, i såvel mængder som næringsstofindhold. Mængderne er begrænsede og andelshavere og gamle kunder har ofte første prioritet, men der er dog muligheder også for nye kunder.
B15: Kilde | C15: http://www.akv-langholt.dk/saft-2/
B16: Sidst opdateret | C16: Dec. 2016

Sheet Kartoffelfrugtsaft
B2: Kartoffelfrugtvand
B3: Oprindelse og form | C3: Kartoffelfrugtvand er et klorfattigt restprodukt fra produktion af kartoffelstivelse, -protein og- pulver.
B4: Indhold | C4: Tørstofindhold: 2,2% Total-kvælstof: 1,1 kg/ton Total-fosfor: 0,27 kg/ton Kalium: 3,6 kg/ton Magnesium: 0,2 kg/ton Svovl: 1,5 kg/ton
B5: Udnyttelse, faglig vurdering | C5: 70 % af kvælstof, 100 % af fosfor, 100 % af kalium
B6: Pris | C6: Bemærk at prisen er stærkt afhængig af udbringningsmetode og afstande. Se priser på: http://www.akm.dk/media/161017/akm_frugtvandsmodt_priser2016.pdf
B7: Radius for levering | C7: Kartoffelfrugtvand leveres til modtagers gylletank inden for en radius af 30 km fra Borupvej 11, 7330 Brande
B8: Håndtering | C8: Kartoffelfrugtvand kan enten leveres til modtagers gylletank, hvor modtager selv varetager udbringning eller udbringes direkte på mark.
B9: Bilag 1 i Vejledning om økologisk jordbrugsproduktion | C9: Kategori: Produkter eller biprodukter af vegetabilsk oprindelse til gødskning. Logbog for planteavl: Noteres som gødning Dokumentation af behov: Noter hvorfor produktet er nødvendigt på din bedrift.
B10: Gødningsregnskab for kvælstof | C10: Lovpligtig N-udnyttelse: 50%
B11: Gødningsregnskab for fosfor | C11: Der kommer en ny regulering for fosfor pr. 1. august 2017.
B12: Andre regler | C12: Ikast-Brande Kommune har i 2016 omklassificeret kartoffelfrugtsaft fra AKM fra affald til biprodukt. Indtil kartoffelfrugtsaften evt. bliver omfattet af generelle udbringningsregler anbefaler kommunen at de tidligere regler for udbringning følges: -at den samlede tilførsel af næringsstoffer fra kartoffelfrugtvand og husdyrgødning ikke må overstige 170 kg totalkvælstof og 30 kg totalfosfor pr. ha pr. år (fosfordoseringen kan beregnes som et gennemsnit over 3 år), -at der med kartoffelfrugtvand ikke må tilføres jorden mere end 7 tons tørstof pr. år (beregnet som et gennemsnit over 10 år), -at der i perioden fra høst til 1.oktober maksimalt må tilføres 50 kg totalkvælstof og 122 kg. kali pr. ha med kartoffelfrugtvand på arealer med vinterraps eller overvintrende græs. Græsarealerne skal afgræsses/høstes inden 31. december. -at der i perioden 1.oktober til 1.februar ikke må udbringes kartoffelfrugtvand på landbrugsjord. -at de maksimale mængder pr. ha pr. år for totalkvælstof, totalfosfor, tørstof og kubikmeter frugtvand skal overholdes inden for enhver 12-måneders periode (hvor mængderne kan beregnes som et gennemsnit over 3 eller 10 år, skal kravene være opfyldt for enhver 36- hhv. 120-måneders periode).
B13: Leverandører | C13: AKM - Andels-Kartoffelmelsfarbrikken Midtjylland A.m.b.a. Ved spørgsmål i forbindelse med udbringing af kartoffelfrugtvand kontakt Jens Studsgaard, tlf. +45 20 92 81 33, +45 87 18 08 88
B14: OBS punkter | C14: Økologer må kun anvende kartoffelfrugtvand om efteråret i perioden efter høst til 1. oktober (og her kun til vinterraps eller overvintrende græs). Herefter tilsættes frugtsaften nemlig et konserveringsmiddel (svovlsyre) som udelukker økologisk brug.
B15: Kilde | C15: http://www.akm.dk/biprodukter/frugtvand.aspx
B16: Sidst opdateret | C16: Dec. 2016

Sheet Kartoffelkondensat
B2: Kartoffelkondensat
B3: Oprindelse og form | C3: Fremkommer ved damp-trykkogning af afvaskede kartofler hvorved der dannes et kondensat som kan udtages fra bunden af trykbeholderen.
B4: Indhold | C4: Tørstofindhold: 4,6% Total-kvælstof: 1,1 kg/ton Total-fosfor: 0,1 kg/ton Kalium: 1,6 kg/ton
B5: Udnyttelse, faglig vurdering | C5: Klorfattigt gødningsprodukt, hvor kvælstof kan forventes udnyttet med 70 %, og øvrige næringsstoffer med 100 %
B6: Pris | C6: Leveres frit til tank + 10 kr./ton til udbringning
B7: Radius for levering | C7: I lokalområdet omkring Grinsted og Varde
B8: Håndtering | C8: Kan blandes med gylle eller køres ud separat. Det er meget tyndt, og kan derfor ifølge Miljøservice med fordel bruges til at "tynde" møg med. Skal køres ud i store mængder pga. lille næringsværdi.
B9: Bilag 1 i Vejledning om økologisk jordbrugsproduktion | C9: Kategori: Produktet er omfattet af kategorien "vinasse og vinasseekstrakt". Logbog for planteavl: Noteres som gødning Dokumentation af behov: Noter hvorfor produktet er nødvendigt på din bedrift.
B10: Gødningsregnskab | C10: Lovpligtig N-udnyttelse: 50%
B11: Gødningsregnskab for fosfor | C11: Der kommer en ny regulering for fosfor pr. 1. august 2017.
B12: Andre regler | C12: Slambekendtgørelsen: Udbringningen skal anmeldelse til kommunen, hvis man modtager mere end 10 tons tørstof pr. år. Der må max udbringes 90 kg fosfor over 3 år og max 170 kg total-kvælstof pr. ha pr. år på markniveau. Hvis kartoffelkondensatet blandes i gylle med max 25 procent, kan det dog udbringes efter reglerne i Husdyrgødningsbekendtgørelsen uden begrænsning i fosformængden. Udbringningen skal dog fortsat anmeldes til kommunen.
B13: Leverandører | C13: Miljøservice
B14: OBS punkter
B15: Kilde | C15: Direktør og projektleder Mogens K. Jensen mogens@miljoeservice.dk 2067 7045
B16: Sidst opdateret | C16: jan. 2017

Sheet Kalium vinasse
B1: Kaliumvinasse
B2: Oprindelse og form | C2: Efter sukkerudvinding fra sukkerroer findes melassen som indeholder 40-50% sukker foruden mineralet og proteiner.Denne melasse anvendes til fremstilling af alkohol, citronsyre og protein. I disse processer frigøres flydende vinasse. Ved tilsætning af gips udfældes vinassen som får en kalklignende konsistens.
B3: Indhold | C3: Tørstofindhold: 91 % Total-kvælstof: under 0,8% Kalium: 21 % Svovl: 17 %
B4: Udnyttelse, faglig vurdering | C4: Kvælstof kan forventes udnyttet med 50%, og øvrige næringsstoffer med 100%
B5: Pris | C5: ca. 1.800 kr. pr. ton
B6: Radius for levering | C6: Hele landet
B7: Håndtering | C7: Kaliumvinasse er i fast pulverform og kan udbringes med kalkspreder.
B8: Bilag 1 i Vejledning om økologisk jordbrugsproduktion | C8: Kategori: Produkter eller biprodukter af vegetabilsk oprindelse til gødskning. Logbog for planteavl: Noteres som gødning Dokumentation af behov: Noter hvorfor produktet er nødvendigt på din bedrift.
B9: Gødningsregnskab for kvælstof | C9: Medtages ikke i gødningsregnskabet, da indholdet ligger under de gældende grænseværdier.
B10: Andre regler | C10: Slambekendtgørelsen: Udbringningen skal anmeldelse til kommunen, hvis man modtager mere end 10 tons tørstof pr. år. Der må max udbringes 90 kg fosfor over 3 år og max 170 kg total-kvælstof pr. ha pr. år på markniveau. Hvis gødningen blandes i gylle med max 25 procent, kan det dog udbringes efter reglerne i Husdyrgødningsbekendtgørelsen uden begrænsning i fosformængden. Udbringningen skal dog fortsat anmeldes til kommunen.
B11: Leverandører | C11: DLG
B12: OBS punkter | C12: Indhold af kvælstof er meget lavt, og indeholder ikke fosfor. Resterende indhold kan variere en anelse.
B13: Kilde | C13: DLG A.m.b.a., Tlf. +45 33 68 30 00 . Link til hjemmeside: https://www.dlg.dk/Landmand/Økologi/Marken%20økologi
B15: Sidst opdateret | C15: Januar 2016

Sheet Vinasse
B2: Vinasse
B3: Oprindelse og form | C3: Vinasse er et biprodukt fra produktion af gær -og spritfremstilling med roemelasse, hvorfra sukker udvindes Tilbage er en tynd opløsning med et typisk tørstofindhold på 8-10 %. Denne opløsning opkoncentreres ved inddampning.
B4: Indhold | C4: Vinasse fra De Danske Gærfabrikker: Tørstofindhold: 65,5 % Total-kvælstof: 3,5 % Kalium: 7,0 %
B5: Udnyttelse, faglig vurdering | C5: Kvælstof kan forventes udnyttet med 70%, og øvrige næringsstoffer med 100 %
B6: Pris | C6: Vinasse kan købes ved De Danske Gærfabrikker og Brdr. Thorsen. Brdr. Thorsen leverer i Østjylland for 600 kr./ton leveret til gylletank. Pris ved levering over større afstande aftales individuelt.
B7: Radius for levering | C7: Hovedsageligt Jylland
B8: Håndtering | C8: Vinassen har en holdbarhed på 2 år og opbevares i tanke af beton eller stål. Kan med fordel omrøres da vinassen kan bundfælde.
B9: Bilag 1 i Vejledning om økologisk jordbrugsproduktion | C9: Kategori: Produkter eller biprodukter af vegetabilsk oprindelse til gødskning. Logbog for planteavl: Noteres som gødning Dokumentation af behov: Noter hvorfor produktet er nødvendigt på din bedrift.
B10: Gødningsregnskab for kvælstof | C10: Generelt ikke afklaret for organiske gødninger, men det forventes at udnyttelsesprocenten vil blive fastsat forholdsmæssigt ud fra udgangsmaterialerne primo 2017.
B11: Andre regler | C11: Norddjurs Kommune træf i 2015 afgørelse om at stofferne vinasse og vinassekali fra De Danske Gærfabrikker, Grenaa ikke er affald, men biprodukter. Derfor skal gødningerne håndteres iflg. gældende gødningsregler.
B12: Leverandører | C12: Brdr. Thorsen I/S leverer primært i Østjylland. Ved levering over større afstande kontakt for nærmere aftale.
B13: OBS punkter | C13: Vinasse kan ikke udbringes uopblandet med almindelig maskinel, og det er derfor nødvendigt at betale Brdr. Thorsen I/S for at udbringe gødningen på marken - medmindre det opblandes med gylle. Der produceres stadig store mængder vinasse, som ligger på lager - klar til afhentning.
B14: Kilde | C14: Brdr. Thorsen I/S, Nimtofte Maskinstation, Svenstrupvej 8, 8581 Nimtofte. Tlf. +45 86 39 86 00. E-mail: nimtofte@brdr-thorsen.dk
B15: Sidst opdateret | C15: Jan. 2017

Sheet Vinasse-kali
B2: VinasseKali
B3: Oprindelse og form | C3: Ved gærfremstilling forbruges roemelassens sukker, og tilbage bliver en tynd opløsning indeholdende 8-10 % tørstof, denne opløsning opkoncentreres ved inddampning. I forbindelse med denne proces udfældes der nogle krystaller, der fradekanteres og opslemmes i vand. Denne blanding er vinassekali.
B4: Indhold | C4: Vinassekali fra De Danske Gærfabrikker: Tørstofindhold:ca. 57 % Total-kvælstof: 0,8 % Kalium: 19 % +/- 3% Svovl: 7% +/- 0,5
B5: Udnyttelse, faglig vurdering | C5: Kvælstof kan forventes udnyttet med 70%, og øvrige næringsstoffer med 100 %
B6: Pris | C6: Brdr. Thorsen: leveret i hele træk (a 30 tons) til gylletank. Østjylland 650 dkk/ton + moms Midtjylland 700 dkk/ton + moms Nord/Sønderjylland 750 dkk/ton + moms
B7: Radius for levering | C7: Jylland
B8: Håndtering | C8: VinasseKali leveres som bulk via tankbil, og udspredes normalt sammen med gyllen. Kan ved kraftig oprøring og tilsat ca. 50% vand udspredes med spreder til flydende gødning.
B9: Bilag 1 i Vejledning om økologisk jordbrugsproduktion | C9: Kategori: Produktet kategoriseres som et vinasseekstrakt. Logbog for planteavl: Noteres som gødning Dokumentation af behov: Noter hvorfor produktet er nødvendigt på din bedrift.
B10: Gødningsregnskab for kvælstof | C10: Medtages ikke i gødningsregnskabet, da indholdet ligger under de gældende grænseværdier.
B11: Andre regler | C11: Norddjurs Kommune træf i 2015 afgørelse om at stofferne vinasse og vinassekali fra De Danske Gærfabrikker, Grenaa ikke er affald, men biprodukter. Derfor skal gødningerne håndteres iflg. gældende gødningsregler.
B12: Leverandører | C12: Brdr. Thorsen
B13: OBS punkter | C13: Indhold af kvælstof er meget lavt, og indeholder ikke fosfor. Resterende indhold kan variere en anelse.
B14: Kilde | C14: Brdr. Thorsen I/S, Nimtofte Maskinstation, Svenstrupvej 8, 8581 Nimtofte. Tlf. +45 86 39 86 00. E-mail: nimtofte@brdr-thorsen.dk . Link til hjemmeside: http://www.brdr-thorsen.dk/services/maskinstation/
B15: Sidst opdateret | C15: Jan. 2017

Sheet Kaliumvinasse ekstrakt K25
B1: Kaliumvinasse ekstrakt K25
B2: Oprindelse og form | C2: Kaliumvinasse ekstrakt er et biprodukt fra bioethanol produktion fra melasse. Produktet opkoncentreres ved inddampning.
B3: Indhold | C3: Tørstofindhold: 95 % Total-kvælstof: 0,3% Fosfor: under 0,44% Kalium: 25,2 % Svovl: 12,3%
B4: Udnyttelse, faglig vurdering | C4: Kvælstof kan forventes udnyttet med 50 %, og øvrige næringsstoffer med 100%
B5: Pris | C5: ca. 1.900 kr. /ton
B6: Radius for levering | C6: Hele landet
B7: Håndtering | C7: Kaliumvinasse er i fast pulverform og kan udbringes med kalkspreder.
B8: Bilag 1 i Vejledning om økologisk jordbrugsproduktion | C8: Kategori: Produktet kategoriseres som et vinasseekstrakt. Logbog for planteavl: Noteres som gødning Dokumentation af behov: Noter hvorfor produktet er nødvendigt på din bedrift.
B9: Gødningsregnskab for kvælstof | C9: Medtages ikke i gødningsregnskabet, da indholdet ligger under de gældende grænseværdier.
B10: Gødningsregnskab for fosfor | C10: Der kommer en ny regulering for fosfor pr. 1. august 2017.
B11: Andre regler | C11: Slambekendtgørelsen: Udbringningen skal anmeldelse til kommunen, hvis man modtager mere end 10 tons tørstof pr. år. Der må max udbringes 90 kg fosfor over 3 år og max 170 kg total-kvælstof pr. ha pr. år på markniveau. Hvis gødningen blandes i gylle med max 25 procent, kan det dog udbringes efter reglerne i Husdyrgødningsbekendtgørelsen uden begrænsning i fosformængden. Udbringningen skal dog fortsat anmeldes til kommunen.
B12: Leverandører | C12: DLG, Danish Agro, Vestjyllands Andel.
B13: OBS punkter | C13: Indhold af kvælstof er meget lavt, og indeholder ikke fosfor. Resterende indhold kan variere en anelse.
B14: Kilde
C15: DLG A.m.b.a., Tlf. +45 33 68 30 00 . Link til hjemmeside: https://www.dlg.dk/Landmand/Økologi/Marken%20økologi
C16: Danish Agro, kontakt vedr. produkter inden for økologisk planteavl Tlf. +45 72 15 80 00. Link til hjemmeside: http://www.danishagro.dk/oekologi/oekologisk-planteavl/organisk-goedning
C17: Vestjyllands Andel, Økologi: http://www.vja.dk/Oekologi-1
B18: Sidst opdateret | C18: Januar 2017

Sheet Binadan 4-1-3
B2: Binadan 4-1-3
B3: Oprindelse og form | C3: Gødning baseret på ren kyllingemøg og presset i 3 mm piller
B4: Indhold | C4: Total-kvælstof: 4 % Total-fosfor: 0,8 % Kalium: 2,8 % Magnesium: 0,64 %
B5: Udnyttelse, faglig vurdering | C5: Kvælstof kan forventes udnyttet med 60-70 %, og øvrige næringsstoffer med 100%, når der regnes over en længere årrække.
B6: Pris | C6: 1584,00 kr. (ekskl. fragt og moms) for Bigbag a 800 kg. Ekstra afgift på 160,00 kr. hvis ikke der føres gødningsregnskab
B7: Radius for levering | C7: Leveres i hele landet (mod betaling)
B8: Håndtering | C8: Leveres med 48 sække a 15 kg på europaller.
B9: Bilag 1 i Vejledning om økologisk jordbrugsproduktion | C9: Kategori: Tørret fast husdyrgødning, herunder tørret fjerkrægødning. Logbog for planteavl: Noteres som gødning Dokumentation af behov: Intet krav hvis alt ikke-økologisk gødning tilsammen giver 50 kg udnyttet N eller mindre pr. ha.
B10: Gødningsregnskab for kvælstof | C10: Lovpligtig N-udnyttelse: 65% (fra kategorien fast gødning)
B11: Gødningsregnskab for fosfor | C11: Der kommer en ny regulering for fosfor pr. 1. august 2017.
B12: Andre regler | C12: Gødningerne er tilladt som ikke-økologisk gødningsmiddel i økologisk jordbrug, og må udbringes med op til 50 kg udnyttet N pr. ha.
B13: Leverandører | C13: Fausol Productions A/S - Metalvej 7 - 4000 Roskilde, Tlf: +45 70 27 29 50 , E-mail: salg@fausol.dk
B14: OBS punkter
B15: Kilde | C15: http://www.fausolproductions.com/binadan-natur-goedning/
B16: Sidst opdateret | C16: Januar 2017

Sheet DLG Kombigødning 4-1-3
B2: DLG Kombigødning NPK 4-1-3
B3: Oprindelse og form | C3: Kombigødningen består af pelleteret hønsegødning.
B4: Indhold | C4: Total-kvælstof: 3,6 % Total-fosfor: 1,0 % Kalium: 2,5 %
B5: Udnyttelse, faglig vurdering | C5: Kvælstof kan forventes udnyttet med 60-70 %, og øvrige næringsstoffer med 100%, når der regnes over en længere årrække.
B6: Pris | C6: 1.750 kr./ton
B7: Radius for levering | C7: Hele landet
B8: Håndtering
B9: Bilag 1 i Vejledning om økologisk jordbrugsproduktion | C9: Kategori: Tørret fast husdyrgødning herunder tørret fjerkrægødning Logbog for planteavl: Noteres som gødning Dokumentation af behov: Intet krav hvis alt ikke-økologisk gødning tilsammen giver 50 kg udnyttet N eller mindre pr. ha.
B10: Gødningsregnskab | C10: Lovpligtig N-udnyttelse: 65% (fra kategorien fast gødning)
B11: Gødningsregnskab for fosfor | C11: Der kommer en ny regulering for fosfor pr. 1. august 2017.
B12: Andre regler | C12: Gødningerne er tilladt som ikke-økologisk gødningsmiddel i økologisk jordbrug, og må udbringes med op til 50 kg udnyttet N pr. ha.
B13: Leverandører | C13: DLG
B14: OBS punkter
B15: Kilde
B16: Sidst opdateret | C16: 14. juni 2016

Sheet Økogødning 6-1-1
B2: Økogødning 6-1-1
B3: Oprindelse og form | C3: Økogødning 6-1-1 er baseret på økologisk lupin og hestebønner.
B4: Indhold | C4: Total-kvælstof: 6,0 % Total-fosfor: 1,0 % Kalium: 1,0 %
B5: Udnyttelse, faglig vurdering | C5: 60 % af kvælstof, 100 % af fosfor og kalium
B6: Pris | C6: Ved hele paller af 100 stk. pris pr. 10 kg 73,00 kr.
B7: Radius for levering | C7: Hele landet
B8: Håndtering | C8: Formalet gødning (pulverform). Primært til væksthuse og grønsagsproduktion.
B9: Bilag 1 i Vejledning om økologisk jordbrugsproduktion | C9: Da gødningen er økologisk indgår den ikke på bilag 1.
B10: Gødningsregnskab for kvælstof | C10: Indregnes med 40% effekt under gruppen "Andre typer af organisk gødning".
B11: Gødningsregnskab for fosfor | C11: Der kommer en ny regulering for fosfor pr. 1. august 2017.
B12: Andre regler | C12: Der må anvendes op til i alt 170 kg total-kvælstof pr. ha, hvis alt gødning er økologisk.
B13: Leverandører | C13: Farmergødning I/S, Toruphøjevej 56, Fjelsø Mark 9620Aalestrup Tlf. +45 98 64 71 22 E-mail: erik@farmergoedning.dk
B14: OBS punkter | C14: Gødningerne er for dyre til almindelige markafgrøder som korn og græsafgrøder. Men relevante til væksthuse og gartnerier.
B15: Kilde | C15: Link til hjemmeside: http://www.farmergodning.dk/
B16: Sidst opdateret | C16: Januar 2017

Sheet Økogødning 5-1-1
B2: Økogødning 5-1-1
B3: Oprindelse og form | C3: Økogødning 5-1-1 er baseret på økologisk lupin og hestebønner.
B4: Indhold | C4: Total-kvælstof: 5,0 % Total-fosfor: 1,0 % Kalium: 1,0 %
B5: Udnyttelse, faglig vurdering | C5: 60 % af kvælstof, 100 % af fosfor og kalium
B6: Pris | C6: Ved hele paller af 100 stk. pris pr. 10 kg 60,00 kr.
B7: Radius for levering | C7: Hele landet
B8: Håndtering | C8: Pilleform - til almindelig udbringing på landbrugsjord.
B9: Bilag 1 i Vejledning om økologisk jordbrugsproduktion | C9: Da gødningen er økologisk indgår den ikke på bilag 1.
B10: Gødningsregnskab for kvælstof | C10: Lovpligtig N-udnyttelse: 40% (kategori "Anden type af organisk gødning")
B11: Gødningsregnskab for fosfor | C11: Der kommer en ny regulering for fosfor pr. 1. august 2017.
B12: Andre regler | C12: Der må anvendes op til i alt 170 kg total-kvælstof pr. ha, hvis alt gødning er økologisk.
B13: Leverandører | C13: Farmergødning I/S, Toruphøjevej 56, Fjelsø Mark 9620Aalestrup Tlf. +45 98 64 71 22 E-mail: erik@farmergoedning.dk
B14: OBS punkter | C14: Gødningerne er for dyre til almindelige markafgrøder som korn og græsafgrøder. Men relevante til væksthuse og gartnerier.
B15: Kilde | C15: Link til hjemmeside: http://www.farmergodning.dk/
B16: Sidst opdateret | C16: Januar 2017

Sheet Økohønsegødning 2-1-2
B2: Økohønsegødning 2-1-2
B3: Oprindelse og form | C3: Økohønsegødning 2-1-2 er komposteret gødning fra økologisk fjerkræ.
B4: Indhold | C4: Total-kvælstof: 2,0 % Total-fosfor: 1,0 % Kalium: 2,0 %
B5: Udnyttelse, faglig vurdering | C5: Kvælstof kan forventes udnyttet med 25%, og øvrige næringsstoffer med 100%, når der regnes over en længere årrække.
B6: Pris | C6: Ved hele paller af 100 stk. pris pr. 10 kg 41,5 kr.
B7: Radius for levering | C7: Hele landet
B8: Håndtering | C8: Komposteret materiale. Helt omsat (komposteret i 2-3 år).
B9: Bilag 1 i Vejledning om økologisk jordbrugsproduktion | C9: Da gødningen er økologisk indgår den ikke på bilag 1.
B10: Gødningsregnskab for kvælstof | C10: Lovpligtig N-udnyttelse: 45% (kategori "Dybstrøelse")
B11: Gødningsregnskab for fosfor | C11: Der kommer en ny regulering for fosfor pr. 1. august 2017.
B12: Andre regler | C12: Der må anvendes op til i alt 170 kg total-kvælstof pr. ha, hvis alt gødning er økologisk.
B13: Leverandører | C13: Farmergødning I/S, Toruphøjevej 56, Fjelsø Mark 9620Aalestrup Tlf. +45 98 64 71 22 E-mail: erik@farmergoedning.dk
B14: OBS punkter | C14: Gødningerne er for dyre til almindelige markafgrøder som korn og græsafgrøder. Men relevante til væksthuse og gartnerier.
B15: Kilde | C15: Link til hjemmeside: http://www.farmergodning.dk/
B16: Sidst opdateret | C16: 14. juni 2016

Sheet Økohønsegødning 3-1-2
B2: Økohønsegødning 3-1-2
B3: Oprindelse og form | C3: Økohønsegødning 3-1-2 er pelleteret gødning fra økologisk fjerkræ.
B4: Indhold | C4: Total-kvælstof: 3,0 % Total-fosfor: 1,0 % Kalium: 2,0 %
B5: Udnyttelse, faglig vurdering | C5: Kvælstof kan forventes udnyttet med 60%, og øvrige næringsstoffer med 100%, når der regnes over en længere årrække.
B6: Pris | C6: Ved hele paller af 100 stk. pris pr. 10 kg 41,5 kr.
B7: Pris | C7: Ved hele paller af 100 stk. pris pr. 10 kg 46,00 kr.
B8: Radius for levering | C8: Hele landet
B9: Håndtering | C9: Pilleform - til almindelig udbringing på landbrugsjord.
B10: Bilag 1 i Vejledning om økologisk jordbrugsproduktion | C10: Da gødningen er økologisk indgår den ikke på bilag 1.
B11: Gødningsregnskab for kvælstof | C11: Lovpligtig N-udnyttelse: 65% (kategori "Fast gødning")
B12: Gødningsregnskab for fosfor | C12: Der kommer en ny regulering for fosfor pr. 1. august 2017.
B13: Andre regler | C13: Der må anvendes op til i alt 170 kg total-kvælstof pr. ha, hvis alt gødning er økologisk.
B14: Leverandører | C14: Farmergødning I/S, Toruphøjevej 56, Fjelsø Mark 9620Aalestrup Tlf. +45 98 64 71 22 E-mail: erik@farmergoedning.dk
B15: OBS punkter | C15: Gødningerne er for dyre til almindelige markafgrøder som korn og græsafgrøder. Men relevante til væksthuse og gartnerier.
B16: Kilde | C16: Link til hjemmeside: http://www.farmergodning.dk/
B17: Sidst opdateret | C17: 14. juni 2016

Sheet Monterra 13
B2: Monterra 13
B3: Oprindelse og form | C3: Monterra 13 består af restprodukter (fjermel, grisehår mm.) fra fremstilling af levnedsmidler.
B4: Indhold | C4: Tørstof: 90 % Total-kvælstof:13 % Kalium: 0,4 % Magnesium: 0,1 %
B5: Udnyttelse, faglig vurdering | C5: Kvælstof kan forventes udnyttet med 70%, og øvrige næringsstoffer med 100%.
B6: Pris | C6: Ca. 7500 kr./tons (pris variere med indkøbsmængde).
B7: Radius for levering | C7: Leveres til hele landet.
B8: Håndtering | C8: Monterra 13 er formuleret i 4-5 mm piller. Den er pH neutral, og har et meget lavt indhold af klor. Pakkes i 25 kg og 1000 kg.
B9: Bilag 1 i Vejledning om økologisk jordbrugsproduktion | C9: Kategori: Produkter eller biprodukter af animalsk oprindelse, herunder kødmel og benmel. Logbog for planteavl: Noteres som gødning Dokumentation af behov: Intet krav hvis alt ikke-økologisk gødning tilsammen giver 50 kg udnyttet N eller mindre pr. ha.
B10: Gødningsregnskab for kvælstof | C10: Generelt ikke afklaret for organiske gødninger, men det forventes at udnyttelsesprocenten vil blive fastsat forholdsmæssigt ud fra indgangsmaterialerne primo 2017.
B11: Gødningsregnskab for fosfor | C11: Der kommer en ny regulering for fosfor pr. 1. august 2017.
B12: Andre regler
B13: Leverandører | C13: Borregaard Bioplant ApS, Helsingforsgade 27B, 8200 Aarhus N. Tlf. +45 86 78 69 88. E-mail: borregaard@bioplant.dk
B14: OBS punkter | C14: Bruges primært til produktion i væksthuse.
B15: Kilde | C15: Link til hjemmeside med beskrivelser og produktblade: http://www.bioplant.dk/produkter/goedninger.aspx
B16: Sidst opdateret | C16: 15. juni 2016

Sheet Monterra-Malt
B2: Monterra Malt 4-1-5
B3: Oprindelse og form | C3: Monterra-Malt består af rent vegetabilske bestanddele domineret af maltspirer fra ølproduktionen
B4: Indhold | C4: Tørstof: 90 % Total-kvælstof:4 % Fosfor: 1% Kalium: 5 %
B5: Udnyttelse, faglig vurdering | C5: Kvælstof kan forventes udnyttet med 70%, og øvrige næringsstoffer med 100%.
B6: Pris | C6: Ca. 3500 kr/tons (pris variere med indkøbsmængde).
B7: Radius for levering | C7: Leveres til hele landet.
B8: Håndtering | C8: Monterraprodukterne er formuleret i 4-5 mm piller. Gødningsbehovet afhænger af afgrøden, jordtypen og jordens aktuelle gødningsstatus. Normalt gives 1.000-3.000 kg/ha. Gødning er fri for sygdomskim og ukrudtsfrø. Den er pH neutral og har et meget lavt indhold af klor. Pakkes i 25 kg og 1000 kg.
B9: Bilag 1 i Vejledning om økologisk jordbrugsproduktion | C9: Kategori: Produkter eller biprodukter af vegetabilsk oprindelse til gødskning. Logbog for planteavl: Noteres som gødning Dokumentation af behov: Noter hvorfor produktet er nødvendigt på din bedrift.
B10: Gødningsregnskab | C10: Produktet står ikke opført i NAERs gødningsfortegnelse. Under afklaring om hvordan gødningen skal indgå i gødningsregnskabet.
B11: Gødningsregnskab for fosfor | C11: Der kommer en ny regulering for fosfor pr. 1. august 2017.
B12: Andre regler
B13: Leverandører | C13: Borregaard Bioplant ApS, Helsingforsgade 27B, 8200 Aarhus N. Tlf. +45 86 78 69 88. E-mail: borregaard@bioplant.dk
B14: OBS punkter | C14: Organisk materiale forbedre jordstrukturen, og næringsstoffer frigives i takt med plantevækst. Bruges primært til produktion i væksthuse.
B15: Kilde | C15: Link til hjemmeside med beskrivelser og produktblade: http://www.bioplant.dk/produkter/goedninger.aspx
B16: Sidst opdateret | C16: 15. juni 2016

Sheet PHC
B2: PHC
B3: Oprindelse og form | C3: PHC er organiske gødninger af vegetabilsk oprindelse.
B4: Indhold | C4: Tørstof: 57-59 % Total-kvælstof: 4,8-7,3 % Total-fosfor: 0,87-1,22 % Kalium: 1,83-4,56 % Svovl: 1,3-1,7 %
B5: Udnyttelse, faglig vurdering | C5: Kvælstof kan forventes udnyttet med 60%, og øvrige næringsstoffer med 100%.
B6: Pris | C6: Ca. 13.000 kr/tons (pris variere med indkøbsmængde).
B7: Radius for levering | C7: Leveres til hele landet.
B8: Håndtering | C8: PHC produkterne er flydende og næringsstofferne hurtigt tilgængelige. Pakkes som 20 liter og 1000 liter.
B9: Bilag 1 i Vejledning om økologisk jordbrugsproduktion | C9: Kategori: Produkter eller biprodukter af vegetabilsk oprindelse til gødskning. Logbog for planteavl: Noteres som gødning Dokumentation af behov: Noter hvorfor produktet er nødvendigt på din bedrift.
B10: Gødningsregnskab for kvælstof | C10: Produktet står ikke opført i NAERs gødningsfortegnelse. Under afklaring om hvordan gødningen skal indgå i gødningsregnskabet.
B11: Gødningsregnskab for fosfor | C11: Der kommer en ny regulering for fosfor pr. 1. august 2017.
B12: Andre regler
B13: Leverandører | C13: Borregaard Bioplant ApS, Helsingforsgade 27B, 8200 Aarhus N. Tlf. +45 86 78 69 88. E-mail: borregaard@bioplant.dk
B14: OBS punkter | C14: Gødningsstofferne i PHC er hurtigt tilgængelige og kan anvendes ved akut mangel. Overdosering kan give svidninger. Bruges primært til produktion i væksthuse.
B15: Kilde | C15: Link til hjemmeside med beskrivelser og produktblade: http://www.bioplant.dk/produkter/goedninger.aspx
B16: Sidst opdateret | C16: 15. juni 2016

Sheet Tang
B2: Tang fra Miljøservice
B3: Oprindelse og form | C3: Tang er opsamlet på de danske badestrande i løbet af badesæsonen. Kan anvendes som gødnings- eller jordforbedrende materiale.
B4: Indhold | C4: Eks: Analyse af tang fra Ærø: Tørstof: 26,5 % Total-kvælstof: 5,3 % Fosfor: 0,3% Kalium: ? %
B5: Udnyttelse, faglig vurdering | C5: Gødningsprodukt, hvor kvælstof kan forventes udnyttet med 5-15%, og øvrige næringsstoffer med 100% når der regnes over en længere årrække.
B6: Pris | C6: Leveres på mark uden omkostninger
B7: Radius for levering | C7: Området omkring Oddsherred kommune
B8: Håndtering
B9: Bilag 1 i Vejledning om økologisk jordbrugsproduktion | C9: Kategori: Alger og algeprodukter Logbog for planteavl: Noteres som gødning Dokumentation af behov: Noter hvorfor produktet er nødvendigt på din bedrift
B10: Gødningsregnskab for kvælstof | C10: Kan variere fra kommune til kommune
B11: Gødningsregnskab for fosfor | C11: Der kommer en ny regulering for fosfor pr. 1. august 2017.
B12: Andre regler | C12: Det er den enkelte kommune der giver en §19 tilladelse til at anvende tang på markerne.
B13: Leverandører | C13: Kontakt de enkelte kommuner med kyststrækninger eller Miljøservice A/S, Ådalen 13A, 6600 Vejen.
B14: OBS punkter | C14: Mængden af tang til gødskningsformål er beskeden. Og kvaliteten kan være varierende. Tang kan indeholde store mængder sand og der er risiko for indhold af klor i tang. Ligeledes kan indholdet af cadmium variere.
B15: Kilde | C15: Direktør og projektleder Mogens K. Jensen mogens@miljoeservice.dk 2067 7045
B16: Sidst opdateret | C16: Jan. 2017

Sheet Ågrøde
B2: Ågrøde fra Miljøservice
B3: Oprindelse og form | C3: Miljøservice modtager afskårne ågrøder fra kommuner. Produktet kan anvendes som gødnings- og jordforbedrende materiale. Fremstillingsmåde i Viborg kommune: Efter grødeskæring i vandløb opsamles materialet på grødepladser nær vandløbet. Her ligger det maksimalt 2 dage og afvander. Der kan findes aftaler vedr. årgøde i andre kommuner også.
B4: Indhold | C4: Analyse fra Viborg kommune Tørstof: 14,5 % Total-kvælstof: 3,2 kg/ton Fosfor: 0,9 kg/ton Kalium: ingen analyse
B5: Udnyttelse, faglig vurdering | C5: 40 % af kvælstof, 100 % af fosfor, 100 % af kalium
B6: Pris | C6: Leveres på mark uden omkostninger
B7: Radius for levering | C7: Primært i Viborg kommune og også til dels i Skive kommune
B8: Håndtering
B9: Bilag 1 i Vejledning om økologisk jordbrugsproduktion | C9: Kategori: Komposteret eller forgæret blanding af vegetabilsk materiale Logbog for planteavl: Gødning Dokumentation af behov: Noter hvorfor produktet er nødvendigt på din bedrift.
B10: Gødningsregnskab for kvælstof | C10: 40% jfr slambekendtgørelsen.
B11: Gødningsregnskab for fosfor | C11: Der kommer en ny regulering for fosfor pr. 1. august 2017.
B12: Andre regler | C12: Viborg kommune: Ågrøden opbevares i markstak ovenpå en 50 cm halmmåtte ved udspredningsarealet, i henhold til tilladelse fra Viborg kommune af 11/5-2011. Genanvendelse af ågrøde på landbrugsjord er reguleret i Miljøbeskyttelsesloven. Viborg kommune har givet tilladelse til udspredning i henhold til slambekendtgørelsen
B13: Leverandører | C13: Miljøservice A/S, Ådalen 13A, 6600 Vejen og evt. kommuner.
B14: OBS punkter | C14: Mængden af ågrøde til gødskningsformål er beskeden. Kontakt Miljøservice vedr. tilgængelighed og leveringsbetingelser.
B15: Kilde | C15: Direktør og projektleder Mogens K. Jensen mogens@miljoeservice.dk 2067 7045
B16: Sidst opdateret | C16: jan. 2017

Sheet Have - parkaffald
B2: Have - parkaffald
B3: Oprindelse og form | C3: Have - parkaffaldet komposteres i varierende grad, hvoraf noget afsættes direkte efter neddeling og sortering og andet færdigkomposteret under kontrollerede forhold. Velegnet som jordforbedrende middel og samtidig forsyning med næringsstoffer.
B4: Indhold | C4: Gennemsnitsdata: Tørstofindhold: 64,0 % Total-kvælstof: 6,0 kg/ton Total-fosfor: 1,1 kg/ton Kalium: 4,0 kg/ton Magnesium: 1,2 kg/ton Svovl: 0,7 kg/ton Analyser laves oftest på "borger kompost", som er den mest omsatte del af komposten - der forventes mindre afvigelser i forhold til grovere, mindre omsatte fraktioner, som oftest er dem landmændene får.
B5: Udnyttelse, faglig vurdering | C5: 0 % af kvælstof (kan varierer fra negativ til svagt positiv førsteårs effekt), 100 % af fosfor og 80-90% af kalium ved gentagen brug.
B6: Pris | C6: Meget varierende fra kommune til kommune. Kan oftest hentes gratis (landmanden betaler transport). Der findes eksempler på at landmænd betaler op til 30 kr./ton, mens nogle udbydere betaler landmænd for at aftage grundet kapacitetsproblemer.
B7: Radius for levering | C7: Håndteres lokalt
B8: Håndtering | C8: Der tilføres typisk med 20-30 ton pr. ha pr. år.
B9: Bilag 1 i Vejledning om økologisk jordbrugsproduktion | C9: Kategori: Komposteret eller forgæret blanding af vegetabilsk oprindelse. Logbog for planteavl: Noteres som jordforbedringsmiddel uanset N-indhold Dokumentation af behov: Noter hvorfor produktet er nødvendigt på din bedrift.
B10: Gødningsregnskab | C10: Medtages ikke i gødningsregnskabet
B11: Andre regler | C11: Ingen specifikke regler for håndtering af ren haveparkaffald.
B12: Leverandører | C12: Kontakt nærmeste genbrugsstation eller affaldscenter for yderligere information. < Liste over de største udbydere (dem der hånterer have-parkaffald i flest kommuner): Gemidan A/S samarbejder med 60 kommuner landet over om håndtering af bl.a. have-parkaffald (http://gemidan.dk). RGS90 A/S samarbejder med en række kommuner i Østjylland samt Københavns kommune og Vestforbrændings ejerkommuner (19 kommuner i og omkring Storkøbenhavn). (http://rgs90.dk/) Nomi4S står for håndtering i Struer, Skive, Holstebro, Lemvig. (http://nomi4s.dk/) AFLD A/S: Ringkøbing-Skjern, Varde, Herning, Ikast-Brande, Billund, Hedensted. (http://esoe.dk/) I/S AffaldPlus: Faxe, Ringsted, Slagelse, Sorø, Vordingborg. (http://affaldplus.dk/) I/S Reno-Nord: Jammerbugt, Brønderslev, Rebild, Mariagerfjord og Aalborg. (http://renonord.dk/) NORFORS: Allerød, Hørsholm, Rudersdal, Helsingør. (http://norfors.dk/)
B13: OBS punkter | C13: Næringsstofindholdet varierer afhængigt af behandling og årstid for indlevering af affaldet. Der findes store forskelle i kvaliteten af komposten og generelt findes ikke analyser på indhold af næringsstoffer og ukrudtsfrø i den fraktion der betegnes råkompost. Der kan forekomme spiredygtige ukrudtsfrø i have - parkaffald, der ikke har gennemgået en kontrolleret kompostering. Herudover kan der i varierende grad findes fysiske urenheder som metal og plastik. Ofte er den kompost som landmanden kun lidt omsat. Efterkompostering kan derfor være nødvendig, ikke mindst for at eliminere mængden af spiredygtige ukrudtsfrø og æg fra dræbersnegle.
B14: Kilde | C14: Kontakt til alle landets kommuner samt analysekampagne hos landmænd der anvender have-parkaffald. Links til kommende artikler og faktaark.
B15: Sidst opdateret | C15: Januar 2017

Sheet Patentkali
B2: Patentkali
B3: Oprindelse og form | C3: Mineralsk gødning fremstillet af kaliumråsalt ved en fysisk udvindingsproces.
B4: Indhold | C4: Kalium: 24,9% Svovl: 17% Magnesium: 6%
B5: Udnyttelse, faglig vurdering | C5: 80-100 % udnyttelse
B6: Pris | C6: 3.600-3.700 kr.
B7: Radius for levering | C7: Hele landet
B8: Håndtering | C8: Spredes med alm. gødningsspreder.
B9: Bilag 1 i Vejledning om økologisk jordbrugsproduktion | C9: Kategori: Kaliumsulfat der muligvis indeholder magnesiumsalt Logbog for planteavl: Noteres som gødning Dokumentation af behov: Der må gødes op til et kalital på 8. Jordbundsanalyser fra indeværende vækstsæson accepteres som dokumentation for behovet og skal opbevares på bedriften. Patentkali er letopløseligt, derfor er der strammere krav til brugen end til kaliumråsalte.
B10: Gødningsregnskab | C10: Skal ikke medtages
B11: Andre regler | C11: Ingen
B12: Leverandører | C12: De fleste grovvarefirmaer
B13: OBS punkter | C13: Ingen
B14: Kilde
B15: Sidst opdateret | C15: 15. juni 2016

Sheet Kiserit
B2: Kiserit
B3: Oprindelse og form | C3: Produceret fra naturlige saltaflejringer i Europa, dannet ved inddampning af hav for mange millioner år siden.
B4: Indhold | C4: Magnesium: 15,1% Svovl: 20%
B5: Udnyttelse, faglig vurdering | C5: Der kan regnes med 80-100% udnyttelse af både magnesium og svovl
B6: Pris | C6: Ca. 2.200 kr pr ton
B7: Radius for levering | C7: Hele landet
B8: Håndtering | C8: Spredes med gødningsspreder.
B9: Bilag 1 i Vejledning om økologisk jordbrugsproduktion | C9: Kategori: Magnesiumsufat (kiserit), kun naturligt forekommende Logbog for planteavl: Noteres som gødning Dokumentation af behov: Jordanalyse: Magnesiumtal under 6, som der må gødes op til på den enkelte mark.
B10: Gødningsregnskab | C10: Skal ikke medtages
B11: Andre regler | C11: Ingen
B12: Leverandører | C12: De fleste grovvarefirmaer
B13: OBS punkter
B14: Kilde | C14: http://www.kali-gmbh.com/uken/fertiliser/products/kieserite_gran.html?display=ShortText
B15: Sidst opdateret | C15: 15. juni 2016

Sheet Magnesia-kainit
B2: Magnesia-kainit
B3: Oprindelse og form | C3: Råsalt
B4: Indhold | C4: Kalium: 9,1% Magnesium: 3% Natrium: 20% Svovl: 4%
B5: Udnyttelse, faglig vurdering | C5: Der kan regnes med 80-100% udnyttelse af både kalium, magnesium og svovl
B6: Pris | C6: ca. 1.450 kr/ton
B7: Radius for levering | C7: Hele landet
B8: Håndtering | C8: Produktet er meget vandsugende og bør derfor være godt beskyttet mod fugt. Leverandøren anbefalet minimum 0,2 mm plastdække.
B9: Bilag 1 i Vejledning om økologisk jordbrugsproduktion | C9: Kategori: Kaliumsulfat der muligvis indeholder magnesiumsalt Logbog for planteavl: Noteres som gødning Dokumentation af behov: Jordanalyse: Kalital under 8, som der må gødes op til på den enkelte mark.
B10: Gødningsregnskab | C10: Skal ikke medtages
B11: Andre regler | C11: Ingen
B12: Leverandører | C12: Vestjyllands Andel, Danish Agro
B13: OBS punkter | C13: Velegnet til græs og roer og ikke til afgrøder følsomme overfor salt.
B14: Kilde | C14: Link til hjemmeside: http://www.vja.dk/index.dsp?area=1
B15: Sidst opdateret | C15: 15. juni 2016

Sheet Kaliumsulfat 41
B2: Kaliumsulfat 41
B3: Oprindelse og form | C3: Fremstillet ud fra et kalium råsalt ved en fysisk udvindingsproces.
B4: Indhold | C4: Kalium: 41,5% Svovl: 18%
B5: Udnyttelse, faglig vurdering | C5: Der kan regnes med 80-100% udnyttelse af både kalium og svovl
B6: Pris | C6: ca. 4.550 kr /ton
B7: Radius for levering | C7: Hele landet
B8: Håndtering
B9: Bilag 1 i Vejledning om økologisk jordbrugsproduktion | C9: Kategori: Kaliumsulfat der muligvis indeholder magnesiumsalt Logbog for planteavl: Noteres som gødning Dokumentation af behov: Jordanalyse: Kalital under 8, som der må gødes op til på den enkelte mark.
B10: Gødningsregnskab
B11: Andre regler
B12: Leverandører | C12: De fleste grovvarefirmaer
B13: OBS punkter
B14: Kilde
B15: Sidst opdateret | C15: 15. juni 2016

Sheet Træaske
B2: Træaske fra Miljøservice
B3: Oprindelse og form | C3: Træaske er bundaske fra afbrænding af flis/råtræ.
B4: Indhold | C4: Analyse fra Hammel Fjernvarme Tørstof: 96 % Fosfor: 9,1 kg/ton Kalium: 24 kg/ton
B5: Udnyttelse, faglig vurdering | C5: 80-100 % udnyttelse over en længere årrække.
B6: Pris | C6: Leveres på mark uden omkostning
B7: Radius for levering | C7: Østjylland (primært Favrskov kommune og Aarhus kommune)
B8: Håndtering | C8: Doseringen med træaske er begrænset af askens indhold af cadmium (Cd). Asken fra Hammel Fjernvarme må doseres med max 1,8 ton/ha pr. fem år (svarer til en tilførsel på i alt 4 g cadmium/ha).
B9: Bilag 1 i Vejledning om økologisk jordbrugsproduktion | C9: Kategori: Træaske, kun fra træ der ikke er kemisk behandlet efter fældning Logbog for planteavl: Noteres som gødning Dokumentation af behov: Noter hvorfor produktet er nødvendigt på din bedrift.
B10: Gødningsregnskab for kvælstof | C10: Der er ikke indhold af kvælstof i produktet
B11: Gødningsregnskab for fosfor | C11: Der kommer en ny regulering for fosfor pr. 1. august 2017.
B12: Andre regler | C12: Bioaskebekendtgørelsen: Ved anvendelse af bioaske til landbrug må den samlede tilførsel af cadmium ikke overstige 0,8 g Cd pr. ha pr. år eller 4 gram pr. ha pr. 5 år. Der må maksimalt tilføres 5 tons tørstof pr. ha. pr. fem år på landbrugsjord. Den samlede tilførsel af næringsstoffer i form af fosfor må ikke overstige 30 kg pr. ha pr. år. Fosfordoseringen kan beregnes som et gennemsnit over tre år. På arealer, hvor der tilføres bioaske, som ikke nedbringes umiddelbart efter udspredning, må der indtil et halvt år efter tilførsel kun dyrkes korn- eller frøafgrøder til modenhed samt afgrøder, der ikke fortæres i rå tilstand af dyr eller mennesker.
B13: Leverandører | C13: Miljøservice A/S, Ådalen 13A, 6600 Vejen. Tlf. +45 75 38 39 99
B14: OBS punkter | C14: Der må ikke iblandes aske fra afbrænding af konventional halm. Indholdet af cadmium sætter en grænse for de mængder der kan tilføres landbrugjord. Mængden af træaske til gødskningsformål er beskeden. Kontakt Miljøservice vedr. tilgængelighed og leveringsbetingelser.
B15: Kilde | C15: Direktør og projektleder Mogens K. Jensen mogens@miljoeservice.dk 2067 7045
B16: Sidst opdateret | C16: 14. juni 2016

Sheet Naturgips
B2: Naturgips
B3: Oprindelse og form | C3: Naturligt stof der udvindes mange steder. Granuleres til en svovlgødning af Bodenkalk i Østrig
B4: Indhold | C4: min. 15 % svovl
B5: Udnyttelse, faglig vurdering | C5: Der kan forventes en udnyttelse af svovlen på 80%
B6: Pris | C6: Omkring 1.050 kr. pr. ton
B7: Radius for levering | C7: Hele landet.
B8: Håndtering | C8: Granuleret form - speredes med almindelig gødningspreder
B9: Bilag 1 i Vejledning om økologisk jordbrugsproduktion | C9: Kategori: Calsiumsulfat (gips) Logbog for planteavl: Noteres som gødning Dokumentation af behov: Konsulenterklæring
B10: Gødningsregnskab | C10: Skal ikke medtages
B11: Andre regler | C11: Ingen
B12: Leverandører | C12: DLG, Vestjyllands Andel og Brdr. Ewers.
B13: OBS punkter
B14: Kilde | C14: www.bodenkalk.at
B15: Sidst opdateret | C15: Jan. 2017

Sheet Frit svovl
B2: Frit svovl
B3: Oprindelse og form | C3: Polsk produkt med titlen "Wigor S" sælges af Hedegaard A/S.
B4: Indhold | C4: 90 % naturligt forekommende elementært svovl iblandet 10 % bentonit der er en lerart.
B5: Udnyttelse, faglig vurdering | C5: Frit svovl skal først omsættes til sulfationer, men er grundet lille partikelstørrelse forventes det hurtigt tilgængeligt for planterne.
B6: Pris | C6: 3400 kr./ton + fragt (meget billigere end tidligere kendte priser)
B7: Radius for levering | C7: Tilgængeligt på lager i Løgum Kloster - transporteres derfra (evt. med merpris)
B8: Håndtering | C8: Granuleret produkt. Kan udbringes med almindelig gødningsspreder.
B9: Bilag 1 i Vejledning om økologisk jordbrugsproduktion | C9: Kategori: Frit svovl Logbog for planteavl: Noteres som gødning Dokumentation af behov: Der skal foreligge en konsulenterklæring
B10: Gødningsregnskab | C10: Skal ikke medtages
B11: Andre regler | C11: Ingen
B12: Leverandører | C12: Hedegaard A/S Afdelingsleder Henrik Refshøj 87 24 24 75, +45 42 13 49 13 hre@hedegaard-as.dk
B13: OBS punkter
B14: Kilde | C14: http://www.hedegaard-as.dk/oekologi/oekologisk-planteavl
B15: Sidst opdateret | C15: Jan. 2017

Sheet Grøngødning
B1: Omkostning ved produktion af grøngødning
B3: Udbytte
B4: Opmåling af stak | C4: 30 | D4: m3 ensilage
B6: Høstet på | C6: 1 | D6: ha grøngødningsmark
B8: Analyse | C8: Tørstof | D8: C | E8: N
C9: % i ensilage | D9: % af tørstof | E9: % af tørstof
C10: 30 | D10: 42 | E10: 3.3
B12: Kg tørstof pr. m3 | C12: 225
B14: Total | C14: Tons ensilage | D14: kg total-N pr. ton | E14: C/N-forhold
C15: =+C4*C12/C10*100/1000 -> 22.5 | D15: =+C10*E10/10 -> 9.9 | E15: =+D10/E10 -> 12.72727273
B17: Omkostninger
B18: Høst og ensilering
B19: Behandling | C19: Antal gange | D19: Kr. pr. ha pr. gang | E19: Kr. pr. ha i alt | J19: Behandling | K19: antal gange | L19: á kr pr. ha
B20: Skårlægning | C20: 4 | D20: 275 | E20: =+C20*D20 -> 1100 | J20: Skårlægning | K20: 4 | L20: 275 | M20: =+K20*L20 -> 1100
B21: Sammenrivning | C21: 4 | D21: 130 | E21: 520 | J21: Sammenrivning | K21: 4 | L21: 130 | M21: =+K21*L21 -> 520
B22: Snitning, hjemkørsel og indlægning i markstak | C22: 4 | D22: 550 | E22: =+C22*D22 -> 2200 | J22: Snitning, hjemkørsel og indlægning i markstak | K22: 4 | L22: 550 | M22: =+K22*L22 -> 2200
B23: Plastik | D23: 548 | E23: =+D23 -> 548 | J23: Plastik | L23: 548 | M23: =+L23 -> 548
B24: Sum | E24: =SUM(E20:E23) -> 4368
B26: Stakken er indhøstet fra | C26: 1 | D26: ha | E26: =+E24*C26 -> 4368
B27: kr. pr. tons | E27: =IF(C15>0,E26/C15,0) -> 194.1333333
B29: Udbringning af ensilage med møgspreder
C30: Kr pr. time | D30: Tons pr. time | E30: Kr. pr tons | K30: á kr pr. time | L30: tons pr. time
B31: Læsning | C31: 625 | D31: 60 | E31: =+C31/D31 -> 10.41666667 | J31: Læsning | K31: 625 | L31: 60 | M31: =+K31/L31 -> 10.41666667
B32: Spredning | C32: 825 | D32: 40 | E32: =+C32/D32 -> 20.625 | J32: Spredning | K32: 825 | L32: 40 | M32: =+K32/L32 -> 20.625
B33: I alt | E33: =SUM(E31:E32) -> 31.04166667
B35: I alt kr. pr. ton | E35: =+E27+E33 -> 225.175
B37: N-udnyttelse | C37: =Gødningsoversigt!$K$62 -> 0 | D37: pct. | J37: N-udnyttelse | K37: =Gødningsoversigt!$K$62 -> 0
E39: kr. pr. kg udnyttet N
B40: Pris pr. kg udnyttet N i mobil grøngødning udbragt i marken | E40: =IF(C4>0,(E27+E33)/(D15*C37/100),"") -> 
B43: P og K?
B44: med eller uden omkostyninger til udbringning her!
